Workbook

Sheet Market Size
B6: Accumulated number of idustry automation devices (open air) in the field 5 years after launch worldwide in all different frequency bands: | H6: 1000000
B7: Fraction of devices sold for the European market in all bands [%]: | H7: 40
B8: Fraction of devices sold in the band 116-130GHz [%]: | H8: 40
B9: Fraction of devices sold in the band 134-141GHz [%]: | H9: 20
B10: Fraction of devices sold in the band 174,8-182GHz [%]: | H10: 20
B11: Fraction of devices sold in the band 185-190GHz [%]: | H11: 10
B12: Fraction of devices sold in the band 231,5-250GHz [%]: | H12: 10
B14: Accumulated number of devices in the field after 5 years in Europe in the band 116-130GHz: | H14: =H6*H7/100*H8/100 -> 160000
B15: Accumulated number of devices in the field after 5 years in Europe in the band 134-141GHz: | H15: =H6*H7/100*H9/100 -> 80000
B16: Accumulated number of devices in the field after 5 years in Europe in the band 174,8-182GHz: | H16: =H6*H7/100*H10/100 -> 80000
B17: Accumulated number of devices in the field after 5 years in Europe in the band 185-190GHz: | H17: =H6*H7/100*H11/100 -> 40000
B18: Accumulated number of devices in the field after 5 years in Europe in the band 231,5-250GHz: | H18: =H6*H7/100*H12/100 -> 40000
B20: Land area of Europe [km²] | H20: 10523000
B22: Interferer density in Europe in the band 116-130GHz [devices/km²] | H22: =H14/H20 -> 0.01520478951
B23: Interferer density in Europe in the band 134-141GHz [devices/km²] | H23: =H15/H20 -> 0.007602394754
B24: Interferer density in Europe in the band 174,8-182GHz [devices/km²] | H24: =H16/H20 -> 0.007602394754
B25: Interferer density in Europe in the band 185-190GHz [devices/km²] | H25: =H17/H20 -> 0.003801197377
B26: Interferer density in Europe in the band 231,5-250GHz [devices/km²] | H26: =H18/H20 -> 0.003801197377

Sheet EESS 116-130GHz
B1: Compatibility analysis between radiodetermination systems for industry automation in the frequency band 116-130 GHz and EESS
B3: Single-entry study | D3: Band of EESS: 114,25-122,25 GHz
B4: Victim EESS system | D4: MWI | E4: Planned EUMETSAT radiometer (ECC Report 190)
B5: Sensor type | D5: Conical scan | E5: Conical scan
B6: EESS: | C6: Units
B7: Assumed centre frequency of EESS | C7: GHz | D7: 119.125 | E7: 119.125
B8: Wavelength of EESS | C8: m | D8: =2.99792458/D7/10 -> 0.002516620844 | E8: =2.99792458/E7/10 -> 0.002516620844
B9: Reference bandwidth | C9: MHz | D9: 200 | E9: 200
B10: Orbit altitude | C10: km | D10: 830 | E10: 800
B11: Angle of incidence at Earth's surface (from zenith) | C11: deg | D11: 53.3 | E11: 53
B12: Elevation angle at ground | C12: deg | D12: =90-D11 -> 36.7 | E12: =90-E11 -> 37
B13: Off-nadir angle | C13: deg | D13: =(ASIN(SIN(D11*PI()/180)/(1+D10/6371)))*180/PI()+0.00000001 -> 45.18299423 | E13: =(ASIN(SIN(E11*PI()/180)/(1+E10/6371)))*180/PI()+0.00000001 -> 45.19744971
B14: Slant path distance | C14: km | D14: =6371*SIN((ASIN(((6371+D10)/6371)*SIN(D13*PI()/180))*180/PI()-D13)*PI()/180)/SIN(D13*PI()/180) -> 1268.117481 | E14: =6371*SIN((ASIN(((6371+E10)/6371)*SIN(E13*PI()/180))*180/PI()-E13)*PI()/180)/SIN(E13*PI()/180) -> 1218.99489
B15: EESS antenna gain | C15: dBi | D15: 55.5 | E15: 55
B16: Size of EESS FOV on Earth's surface | C16: km² | D16: 82 | E16: 82
B17: EESS interference criterion in the reference bandwidth (ITU-R RS.2017-0) | C17: dBW | D17: -166 | E17: -166
B18: Apportionment factor | C18: dB | D18: 12 | E18: 12
B20: Radiodetermination system (interferer):
B21: Conducted Tx power of interferer | C21: dBm | D21: -18 | E21: -18
B22: Out-of-band unwanted emissions attenuation (if EESS victim is located in an adjacent band) | C22: dB | D22: 0 | E22: 0
B23: Tx e.i.r.p. of interferer | C23: dBm | D23: =D21-D22+D28 -> 18 | E23: 18
B24: Bandwidth of interferer Tx signal | C24: GHz | D24: 14 | E24: 14
B25: Tx e.i.r.p. spectral density of interferer | C25: dBm/MHz | D25: =D23-10*LOG(D24*1000) -> -23.46128036 | E25: -23.46128036
B26: Tx e.i.r.p. spectral density of interferer | C26: dBW/MHz | D26: =D25-30 -> -53.46128036 | E26: -53.46128036
B27: Mitigation technique (e.g. activity factor, adaptive power control) | C27: dB | D27: 0 | E27: 0
B28: Gain of the interferer antenna in direction of main radiation | C28: dBi | D28: 36 | E28: 36
B30: Free space loss between interferer and EESS | C30: dB | D30: =20*LOG10(4*PI()*D14*1000/D8) -> 196.0310313 | E30: =20*LOG10(4*PI()*E14*1000/E8) -> 195.6878792
B31: Direct e.i.r.p. spectral density at the EESS antenna | C31: dBW/MHz | D31: =D26-D30+D27 -> -249.4923116 | E31: =E26-E30+E27 -> -249.1491596
B32: Atmospheric loss (according to contribution SE24(20)063_rev1) | C32: dB | D32: 3.2 | E32: 3.2
B33: Polarisation mismatch loss | C33: dB | D33: 3 | E33: 3
B34: Indoor-outdoor attenuation (according to clause 2.3 in the Report) | C34: dB | D34: 0 | E34: 0
B35: Power spectral density at the EESS receiver in a 1 MHz bandwidth | C35: dBW/MHz | D35: =D31+D15-D32-D33-D34 -> -200.1923116 | E35: =E31+E15-E32-E33-E34 -> -200.3491596
B36: Corresponding power at the EESS receiver in the reference bandwidth for a single interferer | C36: dBW | D36: =D35+10*LOG10(D9) -> -177.1820117 | E36: =E35+10*LOG10(E9) -> -177.3388596
B37: Number of interferers in EESS FOV on Earth's surface | D37: 1 | E37: 1
B38: Corresponding received power at the EESS in the reference bandwidth within the EESS's FOV | C38: dBW | D38: =D36+10*LOG10(D37) -> -177.1820117 | E38: =E36+10*LOG10(E37) -> -177.3388596
B39: Margin to EESS interference criterion with apportionment | C39: dB | D39: =D17-D18-D38 -> -0.8179883149 | E39: =E17-E18-E38 -> -0.6611404018
B46: Aggregate interference study | D46: Band of EESS: 114,25-122,25 GHz
B47: Victim EESS system | D47: MWI | E47: Planned EUMETSAT radiometer (ECC Report 190)
B48: Sensor type | D48: Conical scan | E48: Conical scan
B49: EESS: | C49: Units
B50: Assumed centre frequency of EESS | C50: GHz | D50: 119.125 | E50: 119.125
B51: Wavelength of EESS | C51: m | D51: =2.99792458/D50/10 -> 0.002516620844 | E51: =2.99792458/E50/10 -> 0.002516620844
B52: Reference bandwidth | C52: MHz | D52: 200 | E52: 200
B53: Orbit altitude | C53: km | D53: 830 | E53: 800
B54: Angle of incidence at Earth's surface (from zenith) | C54: deg | D54: 53.3 | E54: 53
B55: Elevation angle at ground | C55: deg | D55: =90-D54 -> 36.7 | E55: =90-E54 -> 37
B56: Off-nadir angle | C56: deg | D56: =(ASIN(SIN(D54*PI()/180)/(1+D53/6371)))*180/PI()+0.00000001 -> 45.18299423 | E56: 45.19744971
B57: Slant path distance | C57: km | D57: =6371*SIN((ASIN(((6371+D53)/6371)*SIN(D56*PI()/180))*180/PI()-D56)*PI()/180)/SIN(D56*PI()/180) -> 1268.117481 | E57: 1218.99489
B58: EESS antenna gain | C58: dBi | D58: 55.5 | E58: 55
B59: Size of EESS FOV on Earth's surface | C59: km² | D59: 82 | E59: 82
B60: EESS interference criterion in the reference bandwidth (ITU-R RS.2017-0) | C60: dBW | D60: -166 | E60: -166
B61: Apportionment factor | C61: dB | D61: 12 | E61: 12
B63: Radiodetermination system (interferer):
B64: Conducted Tx power of interferer | C64: dBm | D64: -18 | E64: -18
B65: Out-of-band unwanted emissions attenuation (if EESS victim is located in an adjacent band) | C65: dB | D65: 0 | E65: 0
B66: Tx e.i.r.p. of interferer | C66: dBm | D66: =D64-D65+D71 -> -8 | E66: -8
B67: Bandwidth of interferer Tx signal | C67: GHz | D67: 14 | E67: 14
B68: Tx e.i.r.p. spectral density of interferer | C68: dBm/MHz | D68: =D66-10*LOG(D67*1000) -> -49.46128036 | E68: -49.46128036
B69: Tx e.i.r.p. spectral density of interferer | C69: dBW/MHz | D69: =D68-30 -> -79.46128036 | E69: -79.46128036
B70: Mitigation technique (e.g. activity factor, adaptive power control) | C70: dB | D70: 0 | E70: 0
B71: Average gain of the interferer antenna in the direction of the victim EESS system | C71: dBi | D71: 10 | E71: 10
B73: Free space loss between interferer and EESS | C73: dB | D73: =20*LOG10(4*PI()*D57*1000/D51) -> 196.0310313 | E73: =20*LOG10(4*PI()*E57*1000/E51) -> 195.6878792
B74: Direct e.i.r.p. spectral density at the EESS antenna | C74: dBW/MHz | D74: =D69-D73+D70 -> -275.4923116 | E74: =E69-E73+E70 -> -275.1491596
B75: Atmospheric loss (according to contribution SE24(20)063_rev1) | C75: dB | D75: 3.2 | E75: 3.2
B76: Polarisation mismatch loss | C76: dB | D76: 3 | E76: 3
B77: Indoor-outdoor attenuation (according to clause 2.3 in the Report) | C77: dB | D77: 0 | E77: 0
B78: Power spectral density at the EESS receiver in a 1 MHz bandwidth | C78: dBW/MHz | D78: =D74+D58-D75-D76-D77 -> -226.1923116 | E78: =E74+E58-E75-E76-E77 -> -226.3491596
B79: Corresponding power at the EESS receiver in the reference bandwidth for a single interferer | C79: dBW | D79: =D78+10*LOG10(D52) -> -203.1820117 | E79: =E78+10*LOG10(E52) -> -203.3388596
B80: Uniform RDI device density (with uniform distribution over Europe) | C80: 1/km² | D80: ='Market Size'!H22 -> 0.01520478951 | E80: ='Market Size'!H22 -> 0.01520478951
B81: Aggregate RDI device density (uniform distribution weighted with factor 75; acc. to annex 9 in the Report) | C81: 1/km² | D81: =D80*75 -> 1.140359213 | E81: =E80*75 -> 1.140359213
B82: Number of aggregate RDI devices in the IFOV and active in the reference BW of the satellite | D82: =ROUNDUP(D81*D59,0) -> 94 | E82: =ROUNDUP(E81*E59,0) -> 94
B83: Corresponding received power at the EESS in the reference bandwidth within the EESS's FOV | C83: dBW | D83: =D79+10*LOG10(D82) -> -183.4507331 | E83: =E79+10*LOG10(E82) -> -183.6075811
B84: Margin to EESS interference criterion with apportionment | C84: dB | D84: =D60-D61-D83 -> 5.450733149 | E84: =E60-E61-E83 -> 5.607581062

Sheet EESS 174,8-182GHz
B1: Compatibility analysis between radiodetermination systems for industry automation in the frequency band 174,8-182 GHz and EESS
B3: Single-entry study | D3: Band of EESS: 174,8-191,8 GHz
B4: Victim EESS system | D4: MHS (nadir) | E4: MHS (outer) | F4: MWI | G4: MWS (nadir) | H4: MWS (outer) | I4: ICI | J4: AWS (nadir) | K4: AWS (outer)
B5: Sensor type | D5: Nadir scan | E5: Nadir scan | F5: Conical scan | G5: Nadir scan | H5: Nadir scan | I5: Conical scan | J5: Nadir scan | K5: Nadir scan
B6: EESS: | C6: Units
B7: Assumed centre frequency of EESS | C7: GHz | D7: 178.4 | E7: 178.4 | F7: 178.4 | G7: 178.4 | H7: 178.4 | I7: 178.4 | J7: 178.4 | K7: 178.4
B8: Wavelength of EESS | C8: m | D8: =2.99792458/D7/10 -> 0.001680450998 | E8: 0.001680450998 | F8: 0.001680450998 | G8: 0.001680450998 | H8: 0.001680450998 | I8: 0.001680450998 | J8: 0.001680450998 | K8: 0.001680450998
B9: Reference bandwidth | C9: MHz | D9: 200 | E9: 200 | F9: 200 | G9: 200 | H9: 200 | I9: 200 | J9: 200 | K9: 200
B10: Orbit altitude | C10: km | D10: 822 | E10: 822 | F10: 830 | G10: 830 | H10: 830 | I10: 830 | J10: 600 | K10: 600
B11: Angle of incidence at Earth's surface (from zenith) | C11: deg | D11: 0 | E11: 59 | F11: 53.3 | G11: 0 | H11: 58.5 | I11: 53.3 | J11: 0 | K11: 55.7
B12: Elevation angle at ground | C12: deg | D12: =90-D11 -> 90 | E12: 31 | F12: 36.7 | G12: 90 | H12: 31.5 | I12: 36.7 | J12: 90 | K12: 34.3
B13: Off-nadir angle | C13: deg | D13: =(ASIN(SIN(D11*PI()/180)/(1+D10/6371)))*180/PI()+0.00000001 -> 1e-08 | E13: 49.39479043 | F13: =(ASIN(SIN(F11*PI()/180)/(1+F10/6371)))*180/PI()+0.00000001 -> 45.18299423 | G13: 1e-08 | H13: 48.96977181 | I13: 45.18299423 | J13: 1e-08 | K13: 49.02495908
B14: Slant path distance | C14: km | D14: =6371*SIN((ASIN(((6371+D10)/6371)*SIN(D13*PI()/180))*180/PI()-D13)*PI()/180)/SIN(D13*PI()/180) -> 822 | E14: 1400.207928 | F14: =6371*SIN((ASIN(((6371+F10)/6371)*SIN(F13*PI()/180))*180/PI()-F13)*PI()/180)/SIN(F13*PI()/180) -> 1268.117481 | G14: 830 | H14: 1398.309283 | I14: 1268.117481 | J14: 600 | K14: 980.8707785
B15: EESS antenna gain | C15: dBi | D15: 44.8 | E15: 44.8 | F15: 56.9 | G15: 43 | H15: 43 | I15: 52 | J15: 50 | K15: 50
B16: Size of EESS FOV on Earth's surface | C16: km² | D16: 201 | E16: 1103 | F16: 61 | G16: 315 | H16: 1762 | I16: 164 | J16: 28 | K16: 141
B17: EESS interference criterion in the reference bandwidth (ITU-R RS.2017-0) | C17: dBW | D17: -163 | E17: -163 | F17: -163 | G17: -163 | H17: -163 | I17: -163 | J17: -163 | K17: -163
B18: Apportionment factor | C18: dB | D18: 12 | E18: 12 | F18: 12 | G18: 12 | H18: 12 | I18: 12 | J18: 12 | K18: 12
B20: Radiodetermination system (interferer):
B21: Conducted Tx power of interferer | C21: dBm | D21: -18 | E21: -18 | F21: -18 | G21: -18 | H21: -18 | I21: -18 | J21: -18 | K21: -18
B22: Out-of-band unwanted emissions attenuation (if EESS victim is located in an adjacent band) | C22: dB | D22: 0 | E22: 0 | F22: 0 | G22: 0 | H22: 0 | I22: 0 | J22: 0 | K22: 0
B23: Tx e.i.r.p. of interferer | C23: dBm | D23: =D21-D22+D28 -> 18 | E23: 18 | F23: =F21-F22+F28 -> 18 | G23: 18 | H23: =H21-H22+H28 -> 18 | I23: 18 | J23: 18 | K23: 18
B24: Bandwidth of interferer Tx signal | C24: GHz | D24: 1.5 | E24: 1.5 | F24: 1.5 | G24: 1.5 | H24: 1.5 | I24: 1.5 | J24: 1.5 | K24: 1.5
B25: Tx e.i.r.p. spectral density of interferer | C25: dBm/MHz | D25: =D23-10*LOG(D24*1000) -> -13.76091259 | E25: -13.76091259 | F25: =F23-10*LOG(F24*1000) -> -13.76091259 | G25: -13.76091259 | H25: =H23-10*LOG(H24*1000) -> -13.76091259 | I25: -13.76091259 | J25: -13.76091259 | K25: -13.76091259
B26: Tx e.i.r.p. spectral density of interferer | C26: dBW/MHz | D26: =D25-30 -> -43.76091259 | E26: -43.76091259 | F26: =F25-30 -> -43.76091259 | G26: -43.76091259 | H26: =H25-30 -> -43.76091259 | I26: -43.76091259 | J26: -43.76091259 | K26: -43.76091259
B27: Mitigation technique (e.g. activity factor, adaptive power control) | C27: dB | D27: 0 | E27: 0 | F27: 0 | G27: 0 | H27: 0 | I27: 0 | J27: 0 | K27: 0
B28: Gain of the interferer antenna in direction of main radiation | C28: dBi | D28: 36 | E28: 36 | F28: 36 | G28: 36 | H28: 36 | I28: 36 | J28: 36 | K28: 36
B30: Free space loss between interferer and EESS | C30: dB | D30: =20*LOG10(4*PI()*D14*1000/D8) -> 195.7731166 | E30: 200.3995309 | F30: 199.53887 | G30: 195.8572421 | H30: 200.387745 | I30: 199.53887 | J30: 193.0387052 | K30: 197.3079162
B31: Direct e.i.r.p. spectral density at the EESS antenna | C31: dBW/MHz | D31: =D26-D30+D27 -> -239.5340292 | E31: -244.1604435 | F31: -243.2997826 | G31: -239.6181547 | H31: -244.1486576 | I31: -243.2997826 | J31: -236.7996178 | K31: -241.0688287
B32: Atmospheric loss (according to contribution SE24(20)063_rev1) | C32: dB | D32: 8.3 | E32: 16 | F32: 13.8 | G32: 8.3 | H32: 15.8 | I32: 13.8 | J32: 8.3 | K32: 14.7
B33: Polarisation mismatch loss | C33: dB | D33: 3 | E33: 3 | F33: 3 | G33: 3 | H33: 3 | I33: 3 | J33: 3 | K33: 3
B34: Indoor-outdoor attenuation (according to clause 2.3 in the Report) | C34: dB | D34: 0 | E34: 0 | F34: 0 | G34: 0 | H34: 0 | I34: 0 | J34: 0 | K34: 0
B35: Power spectral density at the EESS receiver in a 1 MHz bandwidth | C35: dBW/MHz | D35: =D31+D15-D32-D33-D34 -> -206.0340292 | E35: -218.3604435 | F35: -203.1997826 | G35: -207.9181547 | H35: -219.9486576 | I35: -208.0997826 | J35: -198.0996178 | K35: -208.7688287
B36: Corresponding power at the EESS receiver in the reference bandwidth for a single interferer | C36: dBW | D36: =D35+10*LOG10(D9) -> -183.0237292 | E36: -195.3501435 | F36: -180.1894826 | G36: -184.9078547 | H36: -196.9383577 | I36: -185.0894826 | J36: -175.0893179 | K36: -185.7585288
B37: Number of interferers in EESS FOV on Earth's surface | D37: 1 | E37: 1 | F37: 1 | G37: 1 | H37: 1 | I37: 1 | J37: 1 | K37: 1
B38: Corresponding received power at the EESS in the reference bandwidth within the EESS's FOV | C38: dBW | D38: =D36+10*LOG10(D37) -> -183.0237292 | E38: -195.3501435 | F38: -180.1894826 | G38: -184.9078547 | H38: -196.9383577 | I38: -185.0894826 | J38: -175.0893179 | K38: -185.7585288
B39: Margin to EESS interference criterion with apportionment | C39: dB | D39: =D17-D18-D38 -> 8.023729207 | E39: 20.3501435 | F39: 5.189482647 | G39: 9.907854704 | H39: 21.93835768 | I39: 10.08948265 | J39: 0.08931786428 | K39: 10.75852879
B46: Aggregate interference study | D46: Band of EESS: 174,8-191,8 GHz
B47: Victim EESS system | D47: MHS (nadir) | E47: MHS (outer) | F47: MWI | G47: MWS (nadir) | H47: MWS (outer) | I47: ICI | J47: AWS (nadir) | K47: AWS (outer)
B48: Sensor type | D48: Nadir scan | E48: Nadir scan | F48: Conical scan | G48: Nadir scan | H48: Nadir scan | I48: Conical scan | J48: Nadir scan | K48: Nadir scan
B49: EESS: | C49: Units
B50: Assumed centre frequency of EESS | C50: GHz | D50: 178.4 | E50: 178.4 | F50: 178.4 | G50: 178.4 | H50: 178.4 | I50: 178.4 | J50: 178.4 | K50: 178.4
B51: Wavelength of EESS | C51: m | D51: =2.99792458/D50/10 -> 0.001680450998 | E51: 0.001680450998 | F51: 0.001680450998 | G51: 0.001680450998 | H51: 0.001680450998 | I51: 0.001680450998 | J51: 0.001680450998 | K51: 0.001680450998
B52: Reference bandwidth | C52: MHz | D52: 200 | E52: 200 | F52: 200 | G52: 200 | H52: 200 | I52: 200 | J52: 200 | K52: 200
B53: Orbit altitude | C53: km | D53: 822 | E53: 822 | F53: 830 | G53: 830 | H53: 830 | I53: 830 | J53: 600 | K53: 600
B54: Angle of incidence at Earth's surface (from zenith) | C54: deg | D54: 0 | E54: 59 | F54: 53.3 | G54: 0 | H54: 58.5 | I54: 53.3 | J54: 0 | K54: 55.7
B55: Elevation angle at ground | C55: deg | D55: =90-D54 -> 90 | E55: 31 | F55: 36.7 | G55: 90 | H55: 31.5 | I55: 36.7 | J55: 90 | K55: 34.3
B56: Off-nadir angle | C56: deg | D56: =(ASIN(SIN(D54*PI()/180)/(1+D53/6371)))*180/PI()+0.00000001 -> 1e-08 | E56: 49.39479043 | F56: 45.18299423 | G56: 1e-08 | H56: 48.96977181 | I56: 45.18299423 | J56: 1e-08 | K56: 49.02495908
B57: Slant path distance | C57: km | D57: =6371*SIN((ASIN(((6371+D53)/6371)*SIN(D56*PI()/180))*180/PI()-D56)*PI()/180)/SIN(D56*PI()/180) -> 822 | E57: 1400.207928 | F57: 1268.117481 | G57: 830 | H57: 1398.309283 | I57: 1268.117481 | J57: 600 | K57: 980.8707785
B58: EESS antenna gain | C58: dBi | D58: 44.8 | E58: 44.8 | F58: 56.9 | G58: 43 | H58: 43 | I58: 52 | J58: 50 | K58: 50
B59: Size of EESS FOV on Earth's surface | C59: km² | D59: 201 | E59: 1103 | F59: 61 | G59: 315 | H59: 1762 | I59: 164 | J59: 28 | K59: 141
B60: EESS interference criterion in the reference bandwidth (ITU-R RS.2017-0) | C60: dBW | D60: -163 | E60: -163 | F60: -163 | G60: -163 | H60: -163 | I60: -163 | J60: -163 | K60: -163
B61: Apportionment factor | C61: dB | D61: 12 | E61: 12 | F61: 12 | G61: 12 | H61: 12 | I61: 12 | J61: 12 | K61: 12
B63: Radiodetermination system (interferer):
B64: Conducted Tx power of interferer | C64: dBm | D64: -18 | E64: -18 | F64: -18 | G64: -18 | H64: -18 | I64: -18 | J64: -18 | K64: -18
B65: Out-of-band unwanted emissions attenuation (if EESS victim is located in an adjacent band) | C65: dB | D65: 0 | E65: 0 | F65: 0 | G65: 0 | H65: 0 | I65: 0 | J65: 0 | K65: 0
B66: Tx e.i.r.p. of interferer | C66: dBm | D66: =D64-D65+D71 -> -8 | E66: -8 | F66: -8 | G66: -8 | H66: -8 | I66: -8 | J66: -8 | K66: -8
B67: Bandwidth of interferer Tx signal | C67: GHz | D67: 1.5 | E67: 1.5 | F67: 1.5 | G67: 1.5 | H67: 1.5 | I67: 1.5 | J67: 1.5 | K67: 1.5
B68: Tx e.i.r.p. spectral density of interferer | C68: dBm/MHz | D68: =D66-10*LOG(D67*1000) -> -39.76091259 | E68: -39.76091259 | F68: -39.76091259 | G68: -39.76091259 | H68: -39.76091259 | I68: -39.76091259 | J68: -39.76091259 | K68: -39.76091259
B69: Tx e.i.r.p. spectral density of interferer | C69: dBW/MHz | D69: =D68-30 -> -69.76091259 | E69: -69.76091259 | F69: -69.76091259 | G69: -69.76091259 | H69: -69.76091259 | I69: -69.76091259 | J69: -69.76091259 | K69: -69.76091259
B70: Mitigation technique (e.g. activity factor, adaptive power control) | C70: dB | D70: 0 | E70: 0 | F70: 0 | G70: 0 | H70: 0 | I70: 0 | J70: 0 | K70: 0
B71: Average gain of the interferer antenna in the direction of the victim EESS system | C71: dBi | D71: 10 | E71: 10 | F71: 10 | G71: 10 | H71: 10 | I71: 10 | J71: 10 | K71: 10
B73: Free space loss between interferer and EESS | C73: dB | D73: =20*LOG10(4*PI()*D57*1000/D51) -> 195.7731166 | E73: 200.3995309 | F73: 199.53887 | G73: 195.8572421 | H73: 200.387745 | I73: 199.53887 | J73: 193.0387052 | K73: 197.3079162
B74: Direct e.i.r.p. spectral density at the EESS antenna | C74: dBW/MHz | D74: =D69-D73+D70 -> -265.5340292 | E74: -270.1604435 | F74: -269.2997826 | G74: -265.6181547 | H74: -270.1486576 | I74: -269.2997826 | J74: -262.7996178 | K74: -267.0688287
B75: Atmospheric loss (according to contribution SE24(20)063_rev1) | C75: dB | D75: 8.3 | E75: 16 | F75: 13.8 | G75: 8.3 | H75: 15.8 | I75: 13.8 | J75: 8.3 | K75: 14.7
B76: Polarisation mismatch loss | C76: dB | D76: 3 | E76: 3 | F76: 3 | G76: 3 | H76: 3 | I76: 3 | J76: 3 | K76: 3
B77: Indoor-outdoor attenuation (according to clause 2.3 in the Report) | C77: dB | D77: 0 | E77: 0 | F77: 0 | G77: 0 | H77: 0 | I77: 0 | J77: 0 | K77: 0
B78: Power spectral density at the EESS receiver in a 1 MHz bandwidth | C78: dBW/MHz | D78: =D74+D58-D75-D76-D77 -> -232.0340292 | E78: -244.3604435 | F78: -229.1997826 | G78: -233.9181547 | H78: -245.9486576 | I78: -234.0997826 | J78: -224.0996178 | K78: -234.7688287
B79: Corresponding power at the EESS receiver in the reference bandwidth for a single interferer | C79: dBW | D79: =D78+10*LOG10(D52) -> -209.0237292 | E79: -221.3501435 | F79: -206.1894826 | G79: -210.9078547 | H79: -222.9383577 | I79: -211.0894826 | J79: -201.0893179 | K79: -211.7585288
B80: Uniform RDI device density (with uniform distribution over Europe) | C80: 1/km² | D80: ='Market Size'!H24 -> 0.007602394754 | E80: ='Market Size'!H24 -> 0.007602394754 | F80: ='Market Size'!H24 -> 0.007602394754 | G80: ='Market Size'!H24 -> 0.007602394754 | H80: ='Market Size'!H24 -> 0.007602394754 | I80: ='Market Size'!H24 -> 0.007602394754 | J80: ='Market Size'!H24 -> 0.007602394754 | K80: ='Market Size'!H24 -> 0.007602394754
B81: Aggregate RDI device density (uniform distribution weighted with factor 75; acc. to annex 9 in the Report) | C81: 1/km² | D81: =D80*75 -> 0.5701796066 | E81: =E80*75 -> 0.5701796066 | F81: 0.5701796066 | G81: 0.5701796066 | H81: 0.5701796066 | I81: 0.5701796066 | J81: 0.5701796066 | K81: =K80*75 -> 0.5701796066
B82: Number of aggregate RDI devices in the IFOV and active in the reference BW of the satellite | D82: =ROUNDUP(D81*D59,0) -> 115 | E82: 629 | F82: 35 | G82: 180 | H82: 1005 | I82: 94 | J82: 16 | K82: 81
B83: Corresponding received power at the EESS in the reference bandwidth within the EESS's FOV | C83: dBW | D83: =D79+10*LOG10(D82) -> -188.4167508 | E83: -193.363637 | F83: -190.7488022 | G83: -188.3551297 | H83: -192.9166971 | I83: -191.3582041 | J83: -189.048118 | K83: -192.6736786
B84: Margin to EESS interference criterion with apportionment | C84: dB | D84: =D60-D61-D83 -> 13.4167508 | E84: 18.36363705 | F84: 15.7488022 | G84: 13.35512965 | H84: 17.91669706 | I84: 16.35820411 | J84: 14.04811804 | K84: 17.6736786

Sheet EESS 185-190GHz
B1: Compatibility analysis between radiodetermination systems for industry automation in the frequency band 185-190 GHz and EESS
B3: Single-entry study | D3: Band of EESS: 174,8-191,8 GHz
B4: Victim EESS system | D4: MHS (Nadir) | E4: MHS (outer) | F4: MWI | G4: MWS (nadir) | H4: MWS (outer) | I4: ICI | J4: AWS (Nadir) | K4: AWS (outer)
B5: Sensor type | D5: Nadir scan | E5: Nadir scan | F5: Conical scan | G5: Nadir scan | H5: Nadir scan | I5: Conical scan | J5: Nadir scan | K5: Nadir scan
B6: EESS: | C6: Units
B7: Assumed centre frequency of EESS | C7: GHz | D7: 187.5 | E7: 187.5 | F7: 187.5 | G7: 187.5 | H7: 187.5 | I7: 187.5 | J7: 187.5 | K7: 187.5
B8: Wavelength of EESS | C8: m | D8: =2.99792458/D7/10 -> 0.001598893109 | E8: 0.001598893109 | F8: 0.001598893109 | G8: 0.001598893109 | H8: 0.001598893109 | I8: 0.001598893109 | J8: 0.001598893109 | K8: 0.001598893109
B9: Reference bandwidth | C9: MHz | D9: 200 | E9: 200 | F9: 200 | G9: 200 | H9: 200 | I9: 200 | J9: 200 | K9: 200
B10: Orbit altitude | C10: km | D10: 822 | E10: 822 | F10: 830 | G10: 830 | H10: 830 | I10: 830 | J10: 600 | K10: 600
B11: Angle of incidence at Earth's surface (from zenith) | C11: deg | D11: 0 | E11: 59 | F11: 53.3 | G11: 0 | H11: 58.5 | I11: 53.3 | J11: 0 | K11: 55.7
B12: Elevation angle at ground | C12: deg | D12: =90-D11 -> 90 | E12: 31 | F12: 36.7 | G12: 90 | H12: 31.5 | I12: 36.7 | J12: =90-J11 -> 90 | K12: =90-K11 -> 34.3
B13: Off-nadir angle | C13: deg | D13: =(ASIN(SIN(D11*PI()/180)/(1+D10/6371)))*180/PI()+0.00000001 -> 1e-08 | E13: 49.39479043 | F13: 45.18299423 | G13: 1e-08 | H13: 48.96977181 | I13: 45.18299423 | J13: 1e-08 | K13: 49.02495908
B14: Slant path distance | C14: km | D14: =6371*SIN((ASIN(((6371+D10)/6371)*SIN(D13*PI()/180))*180/PI()-D13)*PI()/180)/SIN(D13*PI()/180) -> 822 | E14: 1400.207928 | F14: 1268.117481 | G14: 830 | H14: 1398.309283 | I14: 1268.117481 | J14: 600 | K14: 980.8707785
B15: EESS antenna gain | C15: dBi | D15: 44.8 | E15: 44.8 | F15: 56.9 | G15: 43 | H15: 43 | I15: 52 | J15: 50 | K15: 50
B16: Size of EESS FOV on Earth's surface | C16: km² | D16: 201 | E16: 1103 | F16: 61 | G16: 315 | H16: 1762 | I16: 164 | J16: 28 | K16: 141
B17: EESS interference criterion in the reference bandwidth (ITU-R RS.2017-0) | C17: dBW | D17: -163 | E17: -163 | F17: -163 | G17: -163 | H17: -163 | I17: -163 | J17: -163 | K17: -163
B18: Apportionment factor | C18: dB | D18: 12 | E18: 12 | F18: 12 | G18: 12 | H18: 12 | I18: 12 | J18: 12 | K18: 12
B20: Radiodetermination system (interferer):
B21: Conducted Tx power of interferer | C21: dBm | D21: -18 | E21: -18 | F21: -18 | G21: -18 | H21: -18 | I21: -18 | J21: -18 | K21: -18
B22: Out-of-band unwanted emissions attenuation (if EESS victim is located in an adjacent band) | C22: dB | D22: 0 | E22: 0 | F22: 0 | G22: 0 | H22: 0 | I22: 0 | J22: 0 | K22: 0
B23: Tx e.i.r.p. of interferer | C23: dBm | D23: =D21-D22+D28 -> 18 | E23: 18 | F23: 18 | G23: 18 | H23: 18 | I23: 18 | J23: 18 | K23: 18
B24: Bandwidth of interferer Tx signal | C24: GHz | D24: 1.5 | E24: 1.5 | F24: 1.5 | G24: 1.5 | H24: 1.5 | I24: 1.5 | J24: 1.5 | K24: 1.5
B25: Tx e.i.r.p. spectral density of interferer | C25: dBm/MHz | D25: =D23-10*LOG(D24*1000) -> -13.76091259 | E25: -13.76091259 | F25: -13.76091259 | G25: -13.76091259 | H25: -13.76091259 | I25: -13.76091259 | J25: -13.76091259 | K25: -13.76091259
B26: Tx e.i.r.p. spectral density of interferer | C26: dBW/MHz | D26: =D25-30 -> -43.76091259 | E26: -43.76091259 | F26: -43.76091259 | G26: -43.76091259 | H26: -43.76091259 | I26: -43.76091259 | J26: -43.76091259 | K26: -43.76091259
B27: Mitigation technique (e.g. activity factor, adaptive power control) | C27: dB | D27: 0 | E27: 0 | F27: 0 | G27: 0 | H27: 0 | I27: 0 | J27: 0 | K27: 0
B28: Gain of the interferer antenna in direction of main radiation | C28: dBi | D28: 36 | E28: 36 | F28: 36 | G28: 36 | H28: 36 | I28: 36 | J28: 36 | K28: 36
B30: Free space loss between interferer and EESS | C30: dB | D30: =20*LOG10(4*PI()*D14*1000/D8) -> 196.205245 | E30: 200.8316593 | F30: 199.9709985 | G30: 196.2893705 | H30: 200.8198735 | I30: 199.9709985 | J30: 193.4708337 | K30: 197.7400446
B31: Direct e.i.r.p. spectral density at the EESS antenna | C31: dBW/MHz | D31: =D26-D30+D27 -> -239.9661576 | E31: -244.5925719 | F31: -243.731911 | G31: -240.0502831 | H31: -244.5807861 | I31: -243.731911 | J31: -237.2317463 | K31: -241.5009572
B32: Atmospheric loss (according to contribution SE24(20)063_rev1) | C32: dB | D32: 8.3 | E32: 16 | F32: 13.8 | G32: 8.3 | H32: 15.8 | I32: 13.8 | J32: 8.3 | K32: 14.7
B33: Polarisation mismatch loss | C33: dB | D33: 3 | E33: 3 | F33: 3 | G33: 3 | H33: 3 | I33: 3 | J33: 3 | K33: 3
B34: Indoor-outdoor attenuation (according to clause 2.3 in the Report) | C34: dB | D34: 0 | E34: 0 | F34: 0 | G34: 0 | H34: 0 | I34: 0 | J34: 0 | K34: 0
B35: Power spectral density at the EESS receiver in a 1 MHz bandwidth | C35: dBW/MHz | D35: =D31+D15-D32-D33-D34 -> -206.4661576 | E35: -218.7925719 | F35: -203.631911 | G35: -208.3502831 | H35: -220.3807861 | I35: -208.531911 | J35: -198.5317463 | K35: -209.2009572
B36: Corresponding power at the EESS receiver in the reference bandwidth for a single interferer | C36: dBW | D36: =D35+10*LOG10(D9) -> -183.4558576 | E36: -195.7822719 | F36: -180.6216111 | G36: -185.3399831 | H36: -197.3704861 | I36: -185.5216111 | J36: -175.5214463 | K36: -186.1906572
B37: Number of interferers in EESS FOV on Earth's surface | D37: 1 | E37: 1 | F37: 1 | G37: 1 | H37: 1 | I37: 1 | J37: 1 | K37: 1
B38: Corresponding received power at the EESS in the reference bandwidth within the EESS's FOV | C38: dBW | D38: =D36+10*LOG10(D37) -> -183.4558576 | E38: -195.7822719 | F38: -180.6216111 | G38: -185.3399831 | H38: -197.3704861 | I38: -185.5216111 | J38: -175.5214463 | K38: -186.1906572
B39: Margin to EESS interference criterion with apportionment | C39: dB | D39: =D17-D18-D38 -> 8.455857648 | E39: 20.78227194 | F39: 5.621611087 | G39: 10.33998314 | H39: 22.37048612 | I39: 10.52161109 | J39: 0.5214463047 | K39: 11.19065723
B46: Aggregate interference study | D46: Band of EESS: 174,8-191,8 GHz
B47: Victim EESS system | D47: MHS (Nadir) | E47: MHS (outer) | F47: MWI | G47: MWS (nadir) | H47: MWS (outer) | I47: ICI | J47: AWS (Nadir) | K47: AWS (outer)
B48: Sensor type | D48: Nadir scan | E48: Nadir scan | F48: Conical scan | G48: Nadir scan | H48: Nadir scan | I48: Conical scan | J48: Nadir scan | K48: Nadir scan
B49: EESS: | C49: Units
B50: Assumed centre frequency of EESS | C50: GHz | D50: 187.5 | E50: 187.5 | F50: 187.5 | G50: 187.5 | H50: 187.5 | I50: 187.5 | J50: 187.5 | K50: 187.5
B51: Wavelength of EESS | C51: m | D51: =2.99792458/D50/10 -> 0.001598893109 | E51: 0.001598893109 | F51: 0.001598893109 | G51: 0.001598893109 | H51: 0.001598893109 | I51: 0.001598893109 | J51: 0.001598893109 | K51: 0.001598893109
B52: Reference bandwidth | C52: MHz | D52: 200 | E52: 200 | F52: 200 | G52: 200 | H52: 200 | I52: 200 | J52: 200 | K52: 200
B53: Orbit altitude | C53: km | D53: 822 | E53: 822 | F53: 830 | G53: 830 | H53: 830 | I53: 830 | J53: 600 | K53: 600
B54: Angle of incidence at Earth's surface (from zenith) | C54: deg | D54: 0 | E54: 59 | F54: 53.3 | G54: 0 | H54: 58.5 | I54: 53.3 | J54: 0 | K54: 55.7
B55: Elevation angle at ground | C55: deg | D55: =90-D54 -> 90 | E55: 31 | F55: 36.7 | G55: 90 | H55: 31.5 | I55: 36.7 | J55: =90-J54 -> 90 | K55: =90-K54 -> 34.3
B56: Off-nadir angle | C56: deg | D56: =(ASIN(SIN(D54*PI()/180)/(1+D53/6371)))*180/PI()+0.00000001 -> 1e-08 | E56: 49.39479043 | F56: 45.18299423 | G56: 1e-08 | H56: 48.96977181 | I56: 45.18299423 | J56: 1e-08 | K56: 49.02495908
B57: Slant path distance | C57: km | D57: =6371*SIN((ASIN(((6371+D53)/6371)*SIN(D56*PI()/180))*180/PI()-D56)*PI()/180)/SIN(D56*PI()/180) -> 822 | E57: 1400.207928 | F57: 1268.117481 | G57: 830 | H57: 1398.309283 | I57: 1268.117481 | J57: 600 | K57: 980.8707785
B58: EESS antenna gain | C58: dBi | D58: 44.8 | E58: 44.8 | F58: 56.9 | G58: 43 | H58: 43 | I58: 52 | J58: 50 | K58: 50
B59: Size of EESS FOV on Earth's surface | C59: km² | D59: 201 | E59: 1103 | F59: 61 | G59: 315 | H59: 1762 | I59: 164 | J59: 28 | K59: 141
B60: EESS interference criterion in the reference bandwidth (ITU-R RS.2017-0) | C60: dBW | D60: -163 | E60: -163 | F60: -163 | G60: -163 | H60: -163 | I60: -163 | J60: -163 | K60: -163
B61: Apportionment factor | C61: dB | D61: 12 | E61: 12 | F61: 12 | G61: 12 | H61: 12 | I61: 12 | J61: 12 | K61: 12
B63: Radiodetermination system (interferer):
B64: Conducted Tx power of interferer | C64: dBm | D64: -18 | E64: -18 | F64: -18 | G64: -18 | H64: -18 | I64: -18 | J64: -18 | K64: -18
B65: Out-of-band unwanted emissions attenuation (if EESS victim is located in an adjacent band) | C65: dB | D65: 0 | E65: 0 | F65: 0 | G65: 0 | H65: 0 | I65: 0 | J65: 0 | K65: 0
B66: Tx e.i.r.p. of interferer | C66: dBm | D66: =D64-D65+D71 -> -8 | E66: -8 | F66: -8 | G66: -8 | H66: -8 | I66: -8 | J66: -8 | K66: -8
B67: Bandwidth of interferer Tx signal | C67: GHz | D67: 1.5 | E67: 1.5 | F67: 1.5 | G67: 1.5 | H67: 1.5 | I67: 1.5 | J67: 1.5 | K67: 1.5
B68: Tx e.i.r.p. spectral density of interferer | C68: dBm/MHz | D68: =D66-10*LOG(D67*1000) -> -39.76091259 | E68: -39.76091259 | F68: -39.76091259 | G68: -39.76091259 | H68: -39.76091259 | I68: -39.76091259 | J68: -39.76091259 | K68: -39.76091259
B69: Tx e.i.r.p. spectral density of interferer | C69: dBW/MHz | D69: =D68-30 -> -69.76091259 | E69: -69.76091259 | F69: -69.76091259 | G69: -69.76091259 | H69: -69.76091259 | I69: -69.76091259 | J69: -69.76091259 | K69: -69.76091259
B70: Mitigation technique (e.g. activity factor, adaptive power control) | C70: dB | D70: 0 | E70: 0 | F70: 0 | G70: 0 | H70: 0 | I70: 0 | J70: 0 | K70: 0
B71: Average gain of the interferer antenna in the direction of the victim EESS system | C71: dBi | D71: 10 | E71: 10 | F71: 10 | G71: 10 | H71: 10 | I71: 10 | J71: 10 | K71: 10
B73: Free space loss between interferer and EESS | C73: dB | D73: =20*LOG10(4*PI()*D57*1000/D51) -> 196.205245 | E73: 200.8316593 | F73: 199.9709985 | G73: 196.2893705 | H73: 200.8198735 | I73: 199.9709985 | J73: 193.4708337 | K73: 197.7400446
B74: Direct e.i.r.p. spectral density at the EESS antenna | C74: dBW/MHz | D74: =D69-D73+D70 -> -265.9661576 | E74: -270.5925719 | F74: -269.731911 | G74: -266.0502831 | H74: -270.5807861 | I74: -269.731911 | J74: -263.2317463 | K74: -267.5009572
B75: Atmospheric loss (according to contribution SE24(20)063_rev1) | C75: dB | D75: 8.3 | E75: 16 | F75: 13.8 | G75: 8.3 | H75: 15.8 | I75: 13.8 | J75: 8.3 | K75: 14.7
B76: Polarisation mismatch loss | C76: dB | D76: 3 | E76: 3 | F76: 3 | G76: 3 | H76: 3 | I76: 3 | J76: 3 | K76: 3
B77: Indoor-outdoor attenuation (according to clause 2.3 in the Report) | C77: dB | D77: 0 | E77: 0 | F77: 0 | G77: 0 | H77: 0 | I77: 0 | J77: 0 | K77: 0
B78: Power spectral density at the EESS receiver in a 1 MHz bandwidth | C78: dBW/MHz | D78: =D74+D58-D75-D76-D77 -> -232.4661576 | E78: -244.7925719 | F78: -229.631911 | G78: -234.3502831 | H78: -246.3807861 | I78: -234.531911 | J78: -224.5317463 | K78: -235.2009572
B79: Corresponding power at the EESS receiver in the reference bandwidth for a single interferer | C79: dBW | D79: =D78+10*LOG10(D52) -> -209.4558576 | E79: -221.7822719 | F79: -206.6216111 | G79: -211.3399831 | H79: -223.3704861 | I79: -211.5216111 | J79: -201.5214463 | K79: -212.1906572
B80: Uniform RDI device density (with uniform distribution over Europe) | C80: 1/km² | D80: ='Market Size'!$H25 -> 0.003801197377 | E80: ='Market Size'!$H25 -> 0.003801197377 | F80: ='Market Size'!$H25 -> 0.003801197377 | G80: ='Market Size'!$H25 -> 0.003801197377 | H80: ='Market Size'!$H25 -> 0.003801197377 | I80: ='Market Size'!$H25 -> 0.003801197377 | J80: ='Market Size'!$H25 -> 0.003801197377 | K80: ='Market Size'!$H25 -> 0.003801197377
B81: Aggregate RDI device density (uniform distribution weighted with factor 75; acc. to annex 9 in the Report) | C81: 1/km² | D81: =D80*75 -> 0.2850898033 | E81: =E80*75 -> 0.2850898033 | F81: 0.2850898033 | G81: 0.2850898033 | H81: 0.2850898033 | I81: 0.2850898033 | J81: 0.2850898033 | K81: 0.2850898033
B82: Number of aggregate RDI devices in the IFOV and active in the reference BW of the satellite | D82: =ROUNDUP(D81*D59,0) -> 58 | E82: 315 | F82: 18 | G82: 90 | H82: 503 | I82: 47 | J82: 8 | K82: 41
B83: Corresponding received power at the EESS in the reference bandwidth within the EESS's FOV | C83: dBW | D83: =D79+10*LOG10(D82) -> -191.8215777 | E83: -196.7991664 | F83: -194.068886 | G83: -191.7975581 | H83: -196.3548063 | I83: -194.8006325 | J83: -192.4905464 | K83: -196.0628187
B84: Margin to EESS interference criterion with apportionment | C84: dB | D84: =D60-D61-D83 -> 16.82157771 | E84: 21.79916641 | F84: 19.06888604 | G84: 16.79755805 | H84: 21.35480627 | I84: 19.80063251 | J84: 17.49054643 | K84: 21.06281866

Sheet EESS 231,5-250GHz
B1: Compatibility analysis between radiodetermination systems for industry automation in the frequency band 231,5-250 GHz and EESS
B3: Single-entry study | D3: Band of EESS: 226-231,5 GHz | F3: Band of EESS: 239-248 GHz
B4: Victim EESS system | D4: AWS (Nadir) | E4: AWS (outer) | F4: ICI | G4: AWS (Nadir) | H4: AWS (outer)
B5: Sensor type | D5: Nadir scan | E5: Nadir scan | F5: Conical Scan | G5: Nadir Scan | H5: Nadir Scan
B6: EESS: | C6: Units
B7: Assumed centre frequency of EESS | C7: GHz | D7: 228.75 | E7: 228.75 | F7: 243.5 | G7: 243.5 | H7: 243.5
B8: Wavelength of EESS | C8: m | D8: =2.99792458/D7/10 -> 0.001310568122 | E8: =2.99792458/E7/10 -> 0.001310568122 | F8: =2.99792458/F7/10 -> 0.001231180526 | G8: =2.99792458/G7/10 -> 0.001231180526 | H8: =2.99792458/H7/10 -> 0.001231180526
B9: Reference bandwidth | C9: MHz | D9: 200 | E9: 200 | F9: 200 | G9: 200 | H9: 200
B10: Orbit altitude | C10: km | D10: 600 | E10: 600 | F10: 830 | G10: 600 | H10: 600
B11: Angle of incidence at Earth's surface (from zenith) | C11: deg | D11: 0 | E11: 55.7 | F11: 53.3 | G11: 0 | H11: 55.7
B12: Elevation angle at ground | C12: deg | D12: =90-D11 -> 90 | E12: =90-E11 -> 34.3 | F12: =90-F11 -> 36.7 | G12: =90-G11 -> 90 | H12: =90-H11 -> 34.3
B13: Off-nadir angle | C13: deg | D13: =(ASIN(SIN(D11*PI()/180)/(1+D10/6371)))*180/PI()+0.00000001 -> 1e-08 | E13: 49.02495908 | F13: 45.18299423 | G13: 1e-08 | H13: 49.02495908
B14: Slant path distance | C14: km | D14: =6371*SIN((ASIN(((6371+D10)/6371)*SIN(D13*PI()/180))*180/PI()-D13)*PI()/180)/SIN(D13*PI()/180) -> 600 | E14: 980.8707785 | F14: 1268.117481 | G14: 600 | H14: 980.8707785
B15: EESS antenna gain | C15: dBi | D15: 50 | E15: 50 | F15: 52 | G15: 50 | H15: 50
B16: Size of EESS FOV on Earth's surface | C16: km² | D16: 28 | E16: 141 | F16: 164 | G16: 28 | H16: 141
B17: EESS interference criterion in the reference bandwidth (ITU-R RS.2017-0) | C17: dBW | D17: -160 | E17: -160 | F17: -160 | G17: -160 | H17: -160
B18: Apportionment factor | C18: dB | D18: 12 | E18: 12 | F18: 12 | G18: 12 | H18: 12
B20: Radiodetermination system (interferer):
B21: Conducted Tx power of interferer | C21: dBm | D21: -19.8 | E21: -19.8 | F21: -19.8 | G21: -19.8 | H21: -19.8
B22: Out-of-band unwanted emissions attenuation (if EESS victim is located in an adjacent band) | C22: dB | D22: 20 | E22: 20 | F22: 0 | G22: 0 | H22: 0
B23: Tx e.i.r.p. of interferer | C23: dBm | D23: =D21-D22+D28 -> -3.8 | E23: =E21-E22+E28 -> -3.8 | F23: =F21-F22+F28 -> 16.2 | G23: =G21-G22+G28 -> 16.2 | H23: =H21-H22+H28 -> 16.2
B24: Bandwidth of interferer Tx signal | C24: GHz | D24: 15 | E24: 15 | F24: 15 | G24: 15 | H24: 15
B25: Tx e.i.r.p. spectral density of interferer | C25: dBm/MHz | D25: =D23-10*LOG(D24*1000) -> -45.56091259 | E25: =E23-10*LOG(E24*1000) -> -45.56091259 | F25: =F23-10*LOG(F24*1000) -> -25.56091259 | G25: =G23-10*LOG(G24*1000) -> -25.56091259 | H25: =H23-10*LOG(H24*1000) -> -25.56091259
B26: Tx e.i.r.p. spectral density of interferer | C26: dBW/MHz | D26: =D25-30 -> -75.56091259 | E26: =E25-30 -> -75.56091259 | F26: =F25-30 -> -55.56091259 | G26: =G25-30 -> -55.56091259 | H26: =H25-30 -> -55.56091259
B27: Mitigation technique (e.g. activity factor, adaptive power control) | C27: dB | D27: 0 | E27: 0 | F27: 0 | G27: 0 | H27: 0
B28: Gain of the interferer antenna in direction of main radiation | C28: dBi | D28: 36 | E28: 36 | F28: 36 | G28: 36 | H28: 36
B30: Free space loss between interferer and EESS | C30: dB | D30: =20*LOG10(4*PI()*D14*1000/D8) -> 195.1980303 | E30: =20*LOG10(4*PI()*E14*1000/E8) -> 199.4672412 | F30: =20*LOG10(4*PI()*F14*1000/F8) -> 202.2409523 | G30: =20*LOG10(4*PI()*G14*1000/G8) -> 195.7407875 | H30: =20*LOG10(4*PI()*H14*1000/H8) -> 200.0099985
B31: Direct e.i.r.p. spectral density at the EESS antenna | C31: dBW/MHz | D31: =D26-D30+D27 -> -270.7589429 | E31: =E26-E30+E27 -> -275.0281538 | F31: =F26-F30+F27 -> -257.8018649 | G31: =G26-G30+G27 -> -251.3017001 | H31: =H26-H30+H27 -> -255.5709111
B32: Atmospheric loss (according to contribution SE24(20)WI71#9-3) | C32: dB | D32: 4.8 | E32: 8.5 | F32: 8.8 | G32: 5.3 | H32: 9.3
B33: Polarisation mismatch loss | C33: dB | D33: 3 | E33: 3 | F33: 3 | G33: 3 | H33: 3
B34: Indoor-outdoor attenuation (according to clause 2.3 in the Report) | C34: dB | D34: 0 | E34: 0 | F34: 0 | G34: 0 | H34: 0
B35: Power spectral density at the EESS receiver in a 1 MHz bandwidth | C35: dBW/MHz | D35: =D31+D15-D32-D33-D34 -> -228.5589429 | E35: =E31+E15-E32-E33-E34 -> -236.5281538 | F35: =F31+F15-F32-F33-F34 -> -217.6018649 | G35: =G31+G15-G32-G33-G34 -> -209.6017001 | H35: =H31+H15-H32-H33-H34 -> -217.8709111
B36: Corresponding power at the EESS receiver in the reference bandwidth for a single interferer | C36: dBW | D36: =D35+10*LOG10(D9) -> -205.5486429 | E36: =E35+10*LOG10(E9) -> -213.5178538 | F36: =F35+10*LOG10(F9) -> -194.591565 | G36: =G35+10*LOG10(G9) -> -186.5914002 | H36: =H35+10*LOG10(H9) -> -194.8606111
B37: Number of interferers in EESS FOV on Earth's surface | D37: 1 | E37: 1 | F37: 1 | G37: 1 | H37: 1
B38: Corresponding received power at the EESS in the reference bandwidth within the EESS's FOV | C38: dBW | D38: =D36+10*LOG10(D37) -> -205.5486429 | E38: -213.5178538 | F38: =F36+10*LOG10(F37) -> -194.591565 | G38: =G36+10*LOG10(G37) -> -186.5914002 | H38: -194.8606111
B39: Margin to EESS interference criterion with apportionment | C39: dB | D39: =D17-D18-D38 -> 33.54864292 | E39: 41.51785384 | F39: =F17-F18-F38 -> 22.59156496 | G39: =G17-G18-G38 -> 14.59140017 | H39: 22.8606111
B46: Aggregate interference study | D46: Band of EESS: 226-231,5 GHz | F46: Band of EESS: 239-248 GHz
B47: Victim EESS system | D47: AWS (Nadir) | E47: AWS (outer) | F47: ICI | G47: AWS (Nadir) | H47: AWS (outer)
B48: Sensor type | D48: Nadir scan | E48: Nadir scan | F48: Conical Scan | G48: Nadir Scan | H48: Nadir Scan
B49: EESS: | C49: Units
B50: Assumed centre frequency of EESS | C50: GHz | D50: 228.75 | E50: 228.75 | F50: 243.5 | G50: 243.5 | H50: 243.5
B51: Wavelength of EESS | C51: m | D51: =2.99792458/D50/10 -> 0.001310568122 | E51: =2.99792458/E50/10 -> 0.001310568122 | F51: =2.99792458/F50/10 -> 0.001231180526 | G51: =2.99792458/G50/10 -> 0.001231180526 | H51: =2.99792458/H50/10 -> 0.001231180526
B52: Reference bandwidth | C52: MHz | D52: 200 | E52: 200 | F52: 200 | G52: 200 | H52: 200
B53: Orbit altitude | C53: km | D53: 600 | E53: 600 | F53: 830 | G53: 600 | H53: 600
B54: Angle of incidence at Earth's surface (from zenith) | C54: deg | D54: 0 | E54: 55.7 | F54: 53.3 | G54: 0 | H54: 55.7
B55: Elevation angle at ground | C55: deg | D55: =90-D54 -> 90 | E55: =90-E54 -> 34.3 | F55: =90-F54 -> 36.7 | G55: =90-G54 -> 90 | H55: =90-H54 -> 34.3
B56: Off-nadir angle | C56: deg | D56: =(ASIN(SIN(D54*PI()/180)/(1+D53/6371)))*180/PI()+0.00000001 -> 1e-08 | E56: 49.02495908 | F56: 45.18299423 | G56: 1e-08 | H56: 49.02495908
B57: Slant path distance | C57: km | D57: =6371*SIN((ASIN(((6371+D53)/6371)*SIN(D56*PI()/180))*180/PI()-D56)*PI()/180)/SIN(D56*PI()/180) -> 600 | E57: 980.8707785 | F57: 1268.117481 | G57: 600 | H57: 980.8707785
B58: EESS antenna gain | C58: dBi | D58: 50 | E58: 50 | F58: 52 | G58: 50 | H58: 50
B59: Size of EESS FOV on Earth's surface | C59: km² | D59: 28 | E59: 141 | F59: 164 | G59: 28 | H59: 141
B60: EESS interference criterion in the reference bandwidth (ITU-R RS.2017-0) | C60: dBW | D60: -160 | E60: -160 | F60: -160 | G60: -160 | H60: -160
B61: Apportionment factor | C61: dB | D61: 12 | E61: 12 | F61: 12 | G61: 12 | H61: 12
B63: Radiodetermination system (interferer):
B64: Conducted Tx power of interferer | C64: dBm | D64: -19.8 | E64: -19.8 | F64: -19.8 | G64: -19.8 | H64: -19.8
B65: Out-of-band unwanted emissions attenuation (if EESS victim is located in an adjacent band) | C65: dB | D65: 20 | E65: 20 | F65: 0 | G65: 0 | H65: 0
B66: Tx e.i.r.p. of interferer | C66: dBm | D66: =D64-D65+D71 -> -29.8 | E66: -29.8 | F66: =F64-F65+F71 -> -9.8 | G66: =G64-G65+G71 -> -9.8 | H66: =H64-H65+H71 -> -9.8
B67: Bandwidth of interferer Tx signal | C67: GHz | D67: 15 | E67: 15 | F67: 15 | G67: 15 | H67: 15
B68: Tx e.i.r.p. spectral density of interferer | C68: dBm/MHz | D68: =D66-10*LOG(D67*1000) -> -71.56091259 | E68: -71.56091259 | F68: =F66-10*LOG(F67*1000) -> -51.56091259 | G68: =G66-10*LOG(G67*1000) -> -51.56091259 | H68: =H66-10*LOG(H67*1000) -> -51.56091259
B69: Tx e.i.r.p. spectral density of interferer | C69: dBW/MHz | D69: =D68-30 -> -101.5609126 | E69: -101.5609126 | F69: =F68-30 -> -81.56091259 | G69: =G68-30 -> -81.56091259 | H69: =H68-30 -> -81.56091259
B70: Mitigation technique (e.g. activity factor, adaptive power control) | C70: dB | D70: 0 | E70: 0 | F70: 0 | G70: 0 | H70: 0
B71: Average gain of the interferer antenna in the direction of the victim EESS system | C71: dBi | D71: 10 | E71: 10 | F71: 10 | G71: 10 | H71: 10
B73: Free space loss between interferer and EESS | C73: dB | D73: =20*LOG10(4*PI()*D57*1000/D51) -> 195.1980303 | E73: 199.4672412 | F73: =20*LOG10(4*PI()*F57*1000/F51) -> 202.2409523 | G73: =20*LOG10(4*PI()*G57*1000/G51) -> 195.7407875 | H73: =20*LOG10(4*PI()*H57*1000/H51) -> 200.0099985
B74: Direct e.i.r.p. spectral density at the EESS antenna | C74: dBW/MHz | D74: =D69-D73+D70 -> -296.7589429 | E74: -301.0281538 | F74: =F69-F73+F70 -> -283.8018649 | G74: =G69-G73+G70 -> -277.3017001 | H74: =H69-H73+H70 -> -281.5709111
B75: Atmospheric loss (according to contribution SE24(20)WI71#9-03) | C75: dB | D75: 4.8 | E75: 8.5 | F75: 8.8 | G75: 5.3 | H75: 9.3
B76: Polarisation mismatch loss | C76: dB | D76: 3 | E76: 3 | F76: 3 | G76: 3 | H76: 3
B77: Indoor-outdoor attenuation (according to clause 2.3 in the Report) | C77: dB | D77: 0 | E77: 0 | F77: 0 | G77: 0 | H77: 0
B78: Power spectral density at the EESS receiver in a 1 MHz bandwidth | C78: dBW/MHz | D78: =D74+D58-D75-D76-D77 -> -254.5589429 | E78: =E74+E58-E75-E76-E77 -> -262.5281538 | F78: =F74+F58-F75-F76-F77 -> -243.6018649 | G78: =G74+G58-G75-G76-G77 -> -235.6017001 | H78: =H74+H58-H75-H76-H77 -> -243.8709111
B79: Corresponding power at the EESS receiver in the reference bandwidth for a single interferer | C79: dBW | D79: =D78+10*LOG10(D52) -> -231.5486429 | E79: -239.5178538 | F79: =F78+10*LOG10(F52) -> -220.591565 | G79: =G78+10*LOG10(G52) -> -212.5914002 | H79: =H78+10*LOG10(H52) -> -220.8606111
B80: Uniform RDI device density (with uniform distribution over Europe) | C80: 1/km² | D80: ='Market Size'!$H26 -> 0.003801197377 | E80: ='Market Size'!$H26 -> 0.003801197377 | F80: ='Market Size'!$H26 -> 0.003801197377 | G80: ='Market Size'!$H26 -> 0.003801197377 | H80: ='Market Size'!$H26 -> 0.003801197377
B81: Aggregate RDI device density (uniform distribution weighted with factor 75; acc. to annex 9 in the Report) | C81: 1/km² | D81: =D80*75 -> 0.2850898033 | E81: =E80*75 -> 0.2850898033 | F81: =F80*75 -> 0.2850898033 | G81: =G80*75 -> 0.2850898033 | H81: =H80*75 -> 0.2850898033
B82: Number of aggregate RDI devices in the IFOV and active in the reference BW of the satellite | D82: =ROUNDUP(D81*D59,0) -> 8 | E82: =ROUNDUP(E81*E59,0) -> 41 | F82: =ROUNDUP(F81*F59,0) -> 47 | G82: =ROUNDUP(G81*G59,0) -> 8 | H82: =ROUNDUP(H81*H59,0) -> 41
B83: Corresponding received power at the EESS in the reference bandwidth within the EESS's FOV | C83: dBW | D83: =D79+10*LOG10(D82) -> -222.517743 | E83: =E79+10*LOG10(E82) -> -223.3900153 | F83: =F79+10*LOG10(F82) -> -203.8705864 | G83: =G79+10*LOG10(G82) -> -203.5605003 | H83: =H79+10*LOG10(H82) -> -204.7327725
B84: Margin to EESS interference criterion with apportionment | C84: dB | D84: =D60-D61-D83 -> 50.51774305 | E84: =E60-E61-E83 -> 51.39001527 | F84: =F60-F61-F83 -> 31.87058638 | G84: =G60-G61-G83 -> 31.5605003 | H84: =H60-H61-H83 -> 32.73277253

Sheet RAS 116-130GHz
B1: Compatibility analysis between radiodetermination systems for industry automation in the frequency band 116 to 130 GHz and RAS
B5: Victim RAS system | D5: Band of RAS system: 123-158,5 GHz
B6: Sensor type | D6: Continuum observation | E6: Spectral-line observation
B7: RAS: | C7: Units
B8: Assumed centre frequency of RAS | C8: GHz | D8: 126.5 | E8: 126.5
B9: Wavelength of RAS | C9: m | D9: =2.99792458/D8/10 -> 0.002369900854 | E9: 0.002369900854
B10: Bandwidth (ITU-R RA.769-2 ) | C10: MHz | D10: 8000 | E10: 1
B11: Antenna gain in the direction of interferer (ITU-R RA.769-2 ) | C11: dBi | D11: 0 | E11: 0
B12: Feeder (insertion) loss | C12: dB | D12: 0 | E12: 0
B13: Threshold Interference level at receiver input (ITU-R RA.769-2 ) | C13: dBW | D13: -189.3 | E13: -209
B14: Threshold Interference level at receiver input | C14: dBm | D14: =D13+30 -> -159.3 | E14: -179
B16: Radiodetermination system (interferer):
B17: Conducted Tx power of interferer | C17: dBm | D17: -18 | E17: -18
B18: Out-of-band unwanted emissions attenuation (if RAS victim is located in an adjacent band) | C18: dB | D18: 0 | E18: 0
B19: Tx e.i.r.p. of interferer | C19: dBm | D19: =D17-D18+D25 -> 18 | E19: =E17-E18+E25 -> 18
B20: Bandwidth of interferer Tx signal | C20: GHz | D20: 14 | E20: 14
B21: Mitigation technique (e.g. activity factor, adaptive power control) | C21: dB | D21: 0 | E21: 0
B22: Tx e.i.r.p. spectral density of interferer | C22: dBm/MHz | D22: =D19-10*LOG(D20*1000) -> -23.46128036 | E22: -23.46128036
B23: Tx e.i.r.p. spectral density of interferer with mitigation | C23: dBm/MHz | D23: =D19+D21-10*LOG(D20*1000) -> -23.46128036 | E23: -23.46128036
B24: Tx e.i.r.p. of interferer with mitigation | C24: dBm | D24: =D19+D21 -> 18 | E24: =E19+E21 -> 18
B25: Gain of interferer antenna in the direction of main radiation | C25: dBi | D25: 36 | E25: 36
B27: Indoor-outdoor attenuation (according to clause 2.3 in the Report) | C27: dB | D27: 0 | E27: 0
B28: Total e.i.r.p. towards RAS | C28: dBm | D28: =D24-D27 -> 18 | E28: =E24-E27 -> 18
B29: BWCF | C29: dB | D29: =IF(D20*1000<=D10, 0, 10*LOG10(D10/D20/1000)) -> -2.430380487 | E29: =IF(E20*1000<=E10, 0, 10*LOG10(E10/E20/1000)) -> -41.46128036
B32: Separation distance calculation:
B33: Minimum coupling loss (MCL) | C33: dB | D33: =D28-(D14-D11+D12)+D29 -> 174.8696195 | E33: =E28-(E14-E11+E12)+E29 -> 155.5387196
B34: Separation distance with FSL model | C34: km | D34: =10^((D33-32.44-20*LOG10(D8*1000))/20) -> 104.5659892 | E34: =10^((E33-32.44-20*LOG10(E8*1000))/20) -> 11.29393949
B35: Specific attenuation due to atmospheric gases (acc. to ITU-R P.835-6 winter high latitude model) | C35: dB/km | D35: 0.11 | E35: 0.11
B36: Separation distance adjusted for attenuation due to atmospheric gases | C36: km | D36: 53.26319128 | E36: 9.956049426
B37: Balance check (should be close to zero) | C37: dB | D37: =D33-20*LOG10(D36)-D36*D35-32.44-20*LOG10(D8*1000) -> 0.0003142877505 | E37: =E33-20*LOG10(E36)-E36*E35-32.44-20*LOG10(E8*1000) -> 2.81717135e-06

Sheet RAS 134-141GHz
B1: Compatibility analysis between radiodetermination systems for industry automation in the frequency band 134 to 141 GHz and RAS
B5: Victim RAS system | D5: Band of RAS system: 123-158,5 GHz
B6: Sensor type | D6: Continuum observation | E6: Spectral-line observation
B7: RAS: | C7: Units
B8: Assumed centre frequency of RAS | C8: GHz | D8: 137.5 | E8: 137.5
B9: Wavelength of RAS | C9: m | D9: =2.99792458/D8/10 -> 0.002180308785 | E9: 0.002180308785
B10: Bandwidth (ITU-R RA.769-2 ) | C10: MHz | D10: 8000 | E10: 1
B11: Antenna gain in the direction of interferer (ITU-R RA.769-2 ) | C11: dBi | D11: 0 | E11: 0
B12: Feeder (insertion) loss | C12: dB | D12: 0 | E12: 0
B13: Threshold Interference level at receiver input (ITU-R RA.769-2 ) | C13: dBW | D13: -189.5 | E13: -209
B14: Threshold Interference level at receiver input | C14: dBm | D14: =D13+30 -> -159.5 | E14: -179
B16: Radiodetermination system (interferer):
B17: Conducted Tx power of interferer | C17: dBm | D17: -18 | E17: -18
B18: Out-of-band unwanted emissions attenuation (if RAS victim is located in an adjacent band) | C18: dB | D18: 0 | E18: 0
B19: Tx e.i.r.p. of interferer | C19: dBm | D19: =D17-D18+D25 -> 18 | E19: =E17-E18+E25 -> 18
B20: Bandwidth of interferer Tx signal | C20: GHz | D20: 7 | E20: 7
B21: Mitigation technique (e.g. activity factor, adaptive power control) | C21: dB | D21: 0 | E21: 0
B22: Tx e.i.r.p. spectral density of interferer | C22: dBm/MHz | D22: =D19-10*LOG(D20*1000) -> -20.4509804 | E22: -20.4509804
B23: Tx e.i.r.p. spectral density of interferer with mitigation | C23: dBm/MHz | D23: =D19+D21-10*LOG(D20*1000) -> -20.4509804 | E23: -20.4509804
B24: Tx e.i.r.p. of interferer with mitigation | C24: dBm | D24: =D19+D21 -> 18 | E24: =E19+E21 -> 18
B25: Gain of interferer antenna in the direction of main radiation | C25: dBi | D25: 36 | E25: 36
B27: Indoor-outdoor attenuation (according to clause 2.3 in the Report) | C27: dB | D27: 0 | E27: 0
B28: Total e.i.r.p. towards RAS | C28: dBm | D28: =D24-D27 -> 18 | E28: =E24-E27 -> 18
B29: BWCF | C29: dB | D29: =IF(D20*1000<=D10, 0, 10*LOG10(D10/D20/1000)) -> 0 | E29: =IF(E20*1000<=E10, 0, 10*LOG10(E10/E20/1000)) -> -38.4509804
B32: Separation distance calculation:
B33: Minimum coupling loss (MCL) | C33: dB | D33: =D28-(D14-D11+D12)+D29 -> 177.5 | E33: =E28-(E14-E11+E12)+E29 -> 158.5490196
B34: Separation distance with FSL model | C34: km | D34: =10^((D33-32.44-20*LOG10(D8*1000))/20) -> 130.2258803 | E34: =10^((E33-32.44-20*LOG10(E8*1000))/20) -> 14.69427901
B35: Specific attenuation due to atmospheric gases (acc. to ITU-R P.835-6 winter high latitude model) | C35: dB/km | D35: 0.1 | E35: 0.1
B36: Separation distance adjusted for attenuation due to atmospheric gases | C36: km | D36: 63.02883412 | E36: 12.69603176
B37: Balance check (should be close to zero) | C37: dB | D37: =D33-20*LOG10(D36)-D36*D35-32.44-20*LOG10(D8*1000) -> 0.0002771480378 | E37: =E33-20*LOG10(E36)-E36*E35-32.44-20*LOG10(E8*1000) -> 2.455322587e-06

Sheet RAS 174,8-182GHz
B1: Compatibility analysis between radiodetermination systems for industry automation in the frequency band 174,8 to 182 GHz and RAS
B5: Victim RAS system | D5: Band of RAS system: 164-174,5 GHz | F5: Band of RAS system: 182-185 GHz
B6: Sensor type | D6: Continuum observation | E6: Spectral-line observation | F6: Continuum observation | G6: Spectral-line observation
B7: RAS: | C7: Units
B8: Assumed centre frequency of RAS | C8: GHz | D8: 169.25 | E8: 169.25 | F8: 183.5 | G8: 183.5
B9: Wavelength of RAS | C9: m | D9: =2.99792458/D8/10 -> 0.001771299604 | E9: 0.001771299604 | F9: 0.001633746365 | G9: 0.001633746365
B10: Bandwidth (ITU-R RA.769-2 ) | C10: MHz | D10: 8000 | E10: 1 | F10: 8000 | G10: 1
B11: Antenna gain in the direction of interferer (ITU-R RA.769-2 ) | C11: dBi | D11: 0 | E11: 0 | F11: 0 | G11: 0
B12: Feeder (insertion) loss | C12: dB | D12: 0 | E12: 0 | F12: 0 | G12: 0
B13: Threshold Interference level at receiver input (ITU-R RA.769-2 ) | C13: dBW | D13: -189.1 | E13: -209 | F13: -182.4 | G13: -209
B14: Threshold Interference level at receiver input | C14: dBm | D14: =D13+30 -> -159.1 | E14: -179 | F14: -152.4 | G14: -179
B16: Radiodetermination system (interferer):
B17: Conducted Tx power of interferer | C17: dBm | D17: -18 | E17: -18 | F17: -18 | G17: -18
B18: Out-of-band unwanted emissions attenuation (if RAS victim is located in an adjacent band) | C18: dB | D18: 20 | E18: 20 | F18: 20 | G18: 20
B19: Tx e.i.r.p. of interferer | C19: dBm | D19: =D17-D18+D25 -> -2 | E19: =E17-E18+E25 -> -2 | F19: =F17-F18+F25 -> -2 | G19: =G17-G18+G25 -> -2
B20: Bandwidth of interferer Tx signal | C20: GHz | D20: 1.5 | E20: 1.5 | F20: 1.5 | G20: 1.5
B21: Mitigation technique (e.g. activity factor, adaptive power control) | C21: dB | D21: 0 | E21: 0 | F21: 0 | G21: 0
B22: Tx e.i.r.p. spectral density of interferer | C22: dBm/MHz | D22: =D19-10*LOG(D20*1000) -> -33.76091259 | E22: -33.76091259 | F22: -33.76091259 | G22: -33.76091259
B23: Tx e.i.r.p. spectral density of interferer with mitigation | C23: dBm/MHz | D23: =D19+D21-10*LOG(D20*1000) -> -33.76091259 | E23: -33.76091259 | F23: -33.76091259 | G23: -33.76091259
B24: Tx e.i.r.p. of interferer with mitigation | C24: dBm | D24: =D19+D21 -> -2 | E24: =E19+E21 -> -2 | F24: =F19+F21 -> -2 | G24: =G19+G21 -> -2
B25: Gain of interferer antenna in the direction of main radiation | C25: dBi | D25: 36 | E25: 36 | F25: 36 | G25: 36
B27: Indoor-outdoor attenuation (according to clause 2.3 in the Report) | C27: dB | D27: 0 | E27: 0 | F27: 0 | G27: 0
B28: Total e.i.r.p. towards RAS | C28: dBm | D28: =D24-D27 -> -2 | E28: =E24-E27 -> -2 | F28: =F24-F27 -> -2 | G28: =G24-G27 -> -2
B29: BWCF | C29: dB | D29: =IF(D20*1000<=D10, 0, 10*LOG10(D10/D20/1000)) -> 0 | E29: =IF(E20*1000<=E10, 0, 10*LOG10(E10/E20/1000)) -> -31.76091259 | F29: =IF(F20*1000<=F10, 0, 10*LOG10(F10/F20/1000)) -> 0 | G29: =IF(G20*1000<=G10, 0, 10*LOG10(G10/G20/1000)) -> -31.76091259
B32: Separation distance calculation:
B33: Minimum coupling loss (MCL) | C33: dB | D33: =D28-(D14-D11+D12)+D29 -> 157.1 | E33: =E28-(E14-E11+E12)+E29 -> 145.2390874 | F33: =F28-(F14-F11+F12)+F29 -> 150.4 | G33: =G28-(G14-G11+G12)+G29 -> 145.2390874
B34: Separation distance with FSL model | C34: km | D34: =10^((D33-32.44-20*LOG10(D8*1000))/20) -> 10.10348783 | E34: =10^((E33-32.44-20*LOG10(E8*1000))/20) -> 2.578847691 | F34: =10^((F33-32.44-20*LOG10(F8*1000))/20) -> 4.308875357 | G34: =10^((G33-32.44-20*LOG10(G8*1000))/20) -> 2.378582952
B35: Specific attenuation due to atmospheric gases (acc. to ITU-R P.835-6 winter high latitude model) | C35: dB/km | D35: 0.21 | E35: 0.21 | F35: 3.55 | G35: 3.55
B36: Separation distance adjusted for attenuation due to atmospheric gases | C36: km | D36: 8.272072398 | E36: 2.43143014 | F36: 1.945543829 | G36: 1.362730417
B37: Balance check (should be close to zero) | C37: dB | D37: =D33-20*LOG10(D36)-D36*D35-32.44-20*LOG10(D8*1000) -> 4.713793928e-06 | E37: =E33-20*LOG10(E36)-E36*E35-32.44-20*LOG10(E8*1000) -> 0.0006776165271 | F37: =F33-20*LOG10(F36)-F36*F35-32.44-20*LOG10(F8*1000) -> -0.0002223459639 | G37: =G33-20*LOG10(G36)-G36*G35-32.44-20*LOG10(G8*1000) -> 0.0004740660641
D38: Note 1 | F38: Note 2
B40: Note 1: A power spectral density of -13.8dBm/MHz in the whole available bandwidth of 7.2GHz would result in a separation distance of 15.3km. Therefore, a separation distance of at least 15.3km should be considered in order to protect RAS.
B42: Note 1: A power spectral density of -13.8dBm/MHz in the whole available bandwidth of 7.2GHz would result in a separation distance of 2.9km. Therefore, a separation distance of at least 2.9km should be considered in order to protect RAS.

Sheet RAS 185-190GHz
B1: Compatibility analysis between radiodetermination systems for industry automation in the frequency band 185 to 190 GHz and RAS
B5: Victim RAS system | D5: Band of RAS system: 182-185 GHz | F5: Band of RAS system: 190-231,5 GHz
B6: Sensor type | D6: Continuum observation | E6: Spectral-line observation | F6: Continuum observation | G6: Spectral-line observation
B7: RAS: | C7: Units
B8: Assumed centre frequency of RAS | C8: GHz | D8: 183.5 | E8: 183.5 | F8: 210.75 | G8: 210.75
B9: Wavelength of RAS | C9: m | D9: =2.99792458/D8/10 -> 0.001633746365 | E9: 0.001633746365 | F9: 0.001422502766 | G9: 0.001422502766
B10: Bandwidth (ITU-R RA.769-2 ) | C10: MHz | D10: 8000 | E10: 1 | F10: 8000 | G10: 1
B11: Antenna gain in the direction of interferer (ITU-R RA.769-2 ) | C11: dBi | D11: 0 | E11: 0 | F11: 0 | G11: 0
B12: Feeder (insertion) loss | C12: dB | D12: 0 | E12: 0 | F12: 0 | G12: 0
B13: Threshold Interference level at receiver input (ITU-R RA.769-2 ) | C13: dBW | D13: -182.4 | E13: -209 | F13: -187.8 | G13: -207
B14: Threshold Interference level at receiver input | C14: dBm | D14: =D13+30 -> -152.4 | E14: -179 | F14: -157.8 | G14: -177
B16: Radiodetermination system (interferer):
B17: Conducted Tx power of interferer | C17: dBm | D17: -18 | E17: -18 | F17: -18 | G17: -18
B18: Out-of-band unwanted emissions attenuation (if RAS victim is located in an adjacent band) | C18: dB | D18: 20 | E18: 20 | F18: 20 | G18: 20
B19: Tx e.i.r.p. of interferer | C19: dBm | D19: =D17-D18+D25 -> -2 | E19: =E17-E18+E25 -> -2 | F19: =F17-F18+F25 -> -2 | G19: -2
B20: Bandwidth of interferer Tx signal | C20: GHz | D20: 1.5 | E20: 1.5 | F20: 1.5 | G20: 1.5
B21: Mitigation technique (e.g. activity factor, adaptive power control) | C21: dB | D21: 0 | E21: 0 | F21: 0 | G21: 0
B22: Tx e.i.r.p. spectral density of interferer | C22: dBm/MHz | D22: =D19-10*LOG(D20*1000) -> -33.76091259 | E22: -33.76091259 | F22: -33.76091259 | G22: -33.76091259
B23: Tx e.i.r.p. spectral density of interferer with mitigation | C23: dBm/MHz | D23: =D19+D21-10*LOG(D20*1000) -> -33.76091259 | E23: -33.76091259 | F23: -33.76091259 | G23: -33.76091259
B24: Tx e.i.r.p. of interferer with mitigation | C24: dBm | D24: =D19+D21 -> -2 | E24: =E19+E21 -> -2 | F24: =F19+F21 -> -2 | G24: -2
B25: Gain of interferer antenna in the direction of main radiation | C25: dBi | D25: 36 | E25: 36 | F25: 36 | G25: 36
B27: Indoor-outdoor attenuation (according to clause 2.3 in the Report) | C27: dB | D27: 0 | E27: 0 | F27: 0 | G27: 0
B28: Total e.i.r.p. towards RAS | C28: dBm | D28: =D24-D27 -> -2 | E28: =E24-E27 -> -2 | F28: =F24-F27 -> -2 | G28: =G24-G27 -> -2
B29: BWCF | C29: dB | D29: =IF(D20*1000<=D10, 0, 10*LOG10(D10/D20/1000)) -> 0 | E29: =IF(E20*1000<=E10, 0, 10*LOG10(E10/E20/1000)) -> -31.76091259 | F29: =IF(F20*1000<=F10, 0, 10*LOG10(F10/F20/1000)) -> 0 | G29: =IF(G20*1000<=G10, 0, 10*LOG10(G10/G20/1000)) -> -31.76091259
B32: Separation distance calculation:
B33: Minimum coupling loss (MCL) | C33: dB | D33: =D28-(D14-D11+D12)+D29 -> 150.4 | E33: =E28-(E14-E11+E12)+E29 -> 145.2390874 | F33: =F28-(F14-F11+F12)+F29 -> 155.8 | G33: 143.2390874
B34: Separation distance with FSL model | C34: km | D34: =10^((D33-32.44-20*LOG10(D8*1000))/20) -> 4.308875357 | E34: =10^((E33-32.44-20*LOG10(E8*1000))/20) -> 2.378582952 | F34: =10^((F33-32.44-20*LOG10(F8*1000))/20) -> 6.986061696 | G34: 1.645079109
B35: Specific attenuation due to atmospheric gases (acc. to ITU-R P.835-6 winter high latitude model) | C35: dB/km | D35: 3.55 | E35: 3.55 | F35: 0.25 | G35: 0.25
B36: Separation distance adjusted for attenuation due to atmospheric gases | C36: km | D36: 1.945524767 | E36: 1.362774722 | F36: 5.895773341 | G36: 1.572290572
B37: Balance check (should be close to zero) | C37: dB | D37: =D33-20*LOG10(D36)-D36*D35-32.44-20*LOG10(D8*1000) -> -6.957551787e-05 | E37: =E33-20*LOG10(E36)-E36*E35-32.44-20*LOG10(E8*1000) -> 3.438926271e-05 | F37: =F33-20*LOG10(F36)-F36*F35-32.44-20*LOG10(F8*1000) -> -0.0001105823275 | G37: 6.892806539e-06
D38: Note 2 | F38: Note 1
B40: Note 1: A power spectral density of -13.8dBm/MHz in the whole available bandwidth of 5GHz would result in a separation distance of 9.6km. Therefore, a separation distance of at least 9.6km should be considered in order to protect RAS.
B42: Note 2: A power spectral density of -13.8dBm/MHz in the whole available bandwidth of 5GHz would result in a separation distance of 2.7km. Therefore, a separation distance of at least 2.7km should be considered in order to protect RAS.

Sheet RAS 231,5-250GHz
B1: Compatibility analysis between radiodetermination systems for industry automation in the frequency band 231,5 to 250 GHz and RAS systems
B5: Victim RAS system | D5: Band of RAS system: 190-231,5 GHz | F5: Band of RAS system: 235-238 GHz | H5: Band of RAS system: 241-275 GHz
B6: Sensor type | D6: Continuum observation | E6: Spectral-line observation | F6: Continuum observation | G6: Spectral-line observation | H6: Continuum observation | I6: Spectral-line observation
B7: RAS: | C7: Units
B8: Assumed centre frequency of RAS | C8: GHz | D8: 210.75 | E8: 210.75 | F8: 236.5 | G8: 236.5 | H8: 245.5 | I8: 245.5
B9: Wavelength of RAS | C9: m | D9: =2.99792458/D8/10 -> 0.001422502766 | E9: 0.001422502766 | F9: 0.001267621387 | G9: 0.001267621387 | H9: =2.99792458/H8/10 -> 0.001221150542 | I9: 0.001221150542
B10: Bandwidth (ITU-R RA.769-2 ) | C10: MHz | D10: 8000 | E10: 1 | F10: 8000 | G10: 1 | H10: 8000 | I10: 1
B11: Antenna gain in the direction of interferer (ITU-R RA.769-2 ) | C11: dBi | D11: 0 | E11: 0 | F11: 0 | G11: 0 | H11: 0 | I11: 0
B12: Feeder (insertion) loss | C12: dB | D12: 0 | E12: 0 | F12: 0 | G12: 0 | H12: 0 | I12: 0
B13: Threshold Interference level at receiver input (ITU-R RA.769-2 ) | C13: dBW | D13: -187.8 | E13: -207 | F13: -187.8 | G13: -207 | H13: -186.8 | I13: -207
B14: Threshold Interference level at receiver input | C14: dBm | D14: =D13+30 -> -157.8 | E14: -177 | F14: -157.8 | G14: -177 | H14: =H13+30 -> -156.8 | I14: -177
B16: Radiodetermination system (interferer):
B17: Conducted Tx power of interferer | C17: dBm | D17: -19.8 | E17: -19.8 | F17: -19.8 | G17: -19.8 | H17: -19.8 | I17: -19.8
B18: Out-of-band unwanted emissions attenuation (if RAS victim is located in an adjacent band) | C18: dB | D18: 20 | E18: 20 | F18: 0 | G18: 0 | H18: 0 | I18: 0
B19: Tx e.i.r.p. of interferer | C19: dBm | D19: =D17-D18+D25 -> -3.8 | E19: -3.8 | F19: 16.2 | G19: 16.2 | H19: 16.2 | I19: 16.2
B20: Bandwidth of interferer Tx signal | C20: GHz | D20: 15 | E20: 15 | F20: 15 | G20: 15 | H20: 15 | I20: 15
B21: Mitigation technique (e.g. activity factor, adaptive power control) | C21: dB | D21: 0 | E21: 0 | F21: 0 | G21: 0 | H21: 0 | I21: 0
B22: Tx e.i.r.p. spectral density of interferer | C22: dBm/MHz | D22: =D19-10*LOG(D20*1000) -> -45.56091259 | E22: -45.56091259 | F22: -25.56091259 | G22: -25.56091259 | H22: =H19-10*LOG(H20*1000) -> -25.56091259 | I22: -25.56091259
B23: Tx e.i.r.p. spectral density of interferer with mitigation | C23: dBm/MHz | D23: =D19+D21-10*LOG(D20*1000) -> -45.56091259 | E23: -45.56091259 | F23: -25.56091259 | G23: -25.56091259 | H23: =H19+H21-10*LOG(H20*1000) -> -25.56091259 | I23: -25.56091259
B24: Tx e.i.r.p. of interferer with mitigation | C24: dBm | D24: =D19+D21 -> -3.8 | E24: -3.8 | F24: 16.2 | G24: 16.2 | H24: 16.2 | I24: 16.2
B25: Gain of interferer antenna in the direction of main radiation | C25: dBi | D25: 36 | E25: 36 | F25: 36 | G25: 36 | H25: 36 | I25: 36
B27: Indoor-outdoor attenuation (according to clause 2.3 in the Report) | C27: dB | D27: 0 | E27: 0 | F27: 0 | G27: 0 | H27: 0 | I27: 0
B28: Total e.i.r.p. towards RAS | C28: dBm | D28: =D24-D27 -> -3.8 | E28: -3.8 | F28: 16.2 | G28: 16.2 | H28: 16.2 | I28: 16.2
B29: BWCF | C29: dB | D29: =IF(D20*1000<=D10, 0, 10*LOG10(D10/D20/1000)) -> -2.730012721 | E29: -41.76091259 | F29: -2.730012721 | G29: -41.76091259 | H29: -2.730012721 | I29: -41.76091259
B32: Separation distance calculation:
B33: Minimum coupling loss (MCL) | C33: dB | D33: =D28-(D14-D11+D12)+D29 -> 151.2699873 | E33: 131.4390874 | F33: 171.2699873 | G33: 151.4390874 | H33: 170.2699873 | I33: 151.4390874
B34: Separation distance with FSL model | C34: km | D34: =10^((D33-32.44-20*LOG10(D8*1000))/20) -> 4.14697847 | E34: 0.4228504403 | F34: 36.95457559 | G34: 3.768106989 | H34: 31.72837775 | I34: 3.629968648
B35: Specific attenuation due to atmospheric gases (acc. to ITU-R P.835-6 winter high latitude model) | C35: dB/km | D35: 0.25 | E35: 0.25 | F35: 0.27 | G35: 0.27 | H35: 0.29 | I35: 0.29
B36: Separation distance adjusted for attenuation due to atmospheric gases | C36: km | D36: 3.725334019 | E36: 0.4177962968 | F36: 19.90431299 | G36: 3.391120436 | H36: 17.61911441 | I36: 3.256044558
B37: Balance check (should be close to zero) | C37: dB | D37: =D33-20*LOG10(D36)-D36*D35-32.44-20*LOG10(D8*1000) -> -2.257433238e-06 | E37: -5.054644419e-06 | F37: 0.0002560265649 | G37: -2.29060673e-06 | H37: -0.0002673414935 | I37: -2.230593026e-06

Sheet FS 116-130GHz
B1: Compatibility analysis between radiodetermination systems for industry automation in the frequency band 116 to 130 GHz and Fixed Service (FS) systems
B3: Scenario 1: Light pole connected to a building by means of an FS link – FS Rx on building (RDI main beam points exactly towards FS receiver). See Report figure 12.
B5: Victim Fixed Service (FS) system | D5: Band of FS system: 111,8-114,25 GHz | E5: Band of FS system: 111,8-114,25 GHz | F5: Band of FS system: 130-134 GHz | G5: Band of FS system: 130-134 GHz
B6: Sensor type | D6: Point-to-point (PP) | E6: Point-to-point (PP) | F6: Point-to-point (PP) | G6: Point-to-point (PP)
B7: FS: | C7: Units
B8: Assumed centre frequency of FS system | C8: GHz | D8: 113.025 | E8: 113.025 | F8: 132 | G8: 132
B9: Wavelength of FS system | C9: m | D9: =2.99792458/D8/10 -> 0.002652443778 | E9: =2.99792458/E8/10 -> 0.002652443778 | F9: =2.99792458/F8/10 -> 0.002271154985 | G9: =2.99792458/G8/10 -> 0.002271154985
B10: Receiver noise bandwidth (ITU-R-F.758-6) | C10: MHz | D10: 1000 | E10: 1000 | F10: 1000 | G10: 1000
B11: Receiver noise figure (ITU-R-F.758-6) | C11: dB | D11: 12 | E11: 12 | F11: 14 | G11: 14
B12: Misalignment of antenna main beam towards RDI (angle δ in figure 12 in the Report) | C12: ° | D12: 0.95 | E12: 0.95 | F12: 0.95 | G12: 0.95
B13: Antenna gain in the direction of interferer (ITU-R-F.758-6) | C13: dBi | D13: 37.5 | E13: 37.5 | F13: 37.5 | G13: 37.5
B14: Feeder (insertion) loss (ITU-R-F.758-6) | C14: dB | D14: 0 | E14: 0 | F14: 0 | G14: 0
B15: I/N criterion (ITU-R F.758-6 ) | C15: dB | D15: -20 | E15: 5 | F15: -20 | G15: 5
B16: Receiver noise power density typical (ITU-R-F.758-6) | C16: dBW/MHz | D16: -132 | E16: -132 | F16: -130 | G16: -130
B17: Nominal long-term interference power density threshold (ITU-R-F.758-6) | C17: dBW/MHz | D17: =D16+D15 -> -152 | E17: =E16+E15 -> -127 | F17: =F16+F15 -> -150 | G17: =G16+G15 -> -125
B18: Interference threshold at receiver input within IF bandwidth | C18: dBm | D18: =D17+10*LOG10(D10)+30 -> -92 | E18: =E17+10*LOG10(E10)+30 -> -67 | F18: =F17+10*LOG10(F10)+30 -> -90 | G18: =G17+10*LOG10(G10)+30 -> -65
B19: (Receiver noise power density calculated over NF) | C19: dBW/MHz | D19: =-113.83+D11-30 -> -131.83 | E19: =-113.83+E11-30 -> -131.83 | F19: =-113.83+F11-30 -> -129.83 | G19: =-113.83+G11-30 -> -129.83
B21: Radiodetermination system (interferer):
B22: Conducted Tx power of interferer | C22: dBm | D22: -18 | E22: -5 | F22: -18 | G22: -5
B23: Out-of-band unwanted emissions attenuation (if FS victim is located in an adjacent band) | C23: dB | D23: 20 | E23: 20 | F23: 20 | G23: 20
B24: Tx e.i.r.p. of interferer | C24: dBm | D24: =D22-D23+D30 -> -2 | E24: =E22-E23+E30 -> 11 | F24: =F22-F23+F30 -> -2 | G24: =G22-G23+G30 -> 11
B25: Bandwidth of interferer Tx signal | C25: GHz | D25: 14 | E25: 14 | F25: 14 | G25: 14
B26: Mitigation technique (e.g. activity factor, adaptive power control) | C26: dB | D26: 0 | E26: 0 | F26: 0 | G26: 0
B27: Tx e.i.r.p. spectral density of interferer | C27: dBm/MHz | D27: =D24-10*LOG(D25*1000) -> -43.46128036 | E27: =E24-10*LOG(E25*1000) -> -30.46128036 | F27: =F24-10*LOG(F25*1000) -> -43.46128036 | G27: =G24-10*LOG(G25*1000) -> -30.46128036
B28: Tx e.i.r.p. spectral density of interferer with mitigation | C28: dBm/MHz | D28: =D24+D26-10*LOG(D25*1000) -> -43.46128036 | E28: =E24+E26-10*LOG(E25*1000) -> -30.46128036 | F28: =F24+F26-10*LOG(F25*1000) -> -43.46128036 | G28: =G24+G26-10*LOG(G25*1000) -> -30.46128036
B29: Tx e.i.r.p. of interferer with mitigation | C29: dBm | D29: =D24+D26 -> -2 | E29: =E24+E26 -> 11 | F29: =F24+F26 -> -2 | G29: =G24+G26 -> 11
B30: Gain of interferer antenna in direction of main radiation | C30: dBi | D30: 36 | E30: 36 | F30: 36 | G30: 36
B32: Indoor-outdoor attenuation (according to clause 2.3 in the Report) | C32: dB | D32: 0 | E32: 0 | F32: 0 | G32: 0
B33: Total e.i.r.p. towards FS system | C33: dBm | D33: =D29-D32 -> -2 | E33: =E29-E32 -> 11 | F33: =F29-F32 -> -2 | G33: =G29-G32 -> 11
B34: BWCF | C34: dB | D34: =IF(D25*1000<=D10, 0, 10*LOG10(D10/D25/1000)) -> -11.46128036 | E34: 0 | F34: =IF(F25*1000<=F10, 0, 10*LOG10(F10/F25/1000)) -> -11.46128036 | G34: 0
B37: Separation distance calculation:
B38: Minimum coupling loss (MCL) | C38: dB | D38: =D33-(D18-D13+D14)+D34 -> 116.0387196 | E38: =E33-(E18-E13+E14)+E34 -> 115.5 | F38: =F33-(F18-F13+F14)+F34 -> 114.0387196 | G38: =G33-(G18-G13+G14)+G34 -> 113.5
B39: Separation distance with FSL model | C39: km | D39: =10^((D38-32.44-20*LOG10(D8*1000))/20) -> 0.133894108 | E39: =10^((E38-32.44-20*LOG10(E8*1000))/20) -> 0.125841963 | F39: =10^((F38-32.44-20*LOG10(F8*1000))/20) -> 0.0910672141 | G39: =10^((G38-32.44-20*LOG10(G8*1000))/20) -> 0.0855905996
B40: Specific attenuation due to atmospheric gases (ITU-R P.676-11 figure 5) | C40: dB/km | D40: 0.4 | E40: 0.4 | F40: 0.8 | G40: 0.8
B41: Separation distance adjusted for attenuation due to atmospheric gases | C41: km | D41: 0.1330757289 | E41: 0.1251186343 | F41: 0.09031263093 | G41: 0.08492353494
B42: Balance check (should be close to zero) | C42: dB | D42: =D38-20*LOG10(D41)-D41*D40-32.44-20*LOG10(D8*1000) -> 2.196680713e-05 | E42: =E38-20*LOG10(E41)-E41*E40-32.44-20*LOG10(E8*1000) -> 2.232558707e-05 | F42: =F38-20*LOG10(F41)-F41*F40-32.44-20*LOG10(F8*1000) -> 2.103348922e-05 | G42: =G38-20*LOG10(G41)-G41*G40-32.44-20*LOG10(G8*1000) -> 2.128048703e-05
D43: Long term interference criterion | E43: Peak power objective | F43: Long term interference criterion | G43: Peak power objective
B47: Scenario 2: Light pole connected to a building by means of an FS link – FS Rx at light pole (RDI main beam points exactly towards FS receiver). See Report figure 13.
B49: Victim Fixed Service (FS) system | D49: Band of FS system: 111,8-114,25 GHz | E49: Band of FS system: 111,8-114,25 GHz | F49: Band of FS system: 130-134 GHz | G49: Band of FS system: 130-134 GHz
B50: Sensor type | D50: Point-to-point (PP) | E50: Point-to-point (PP) | F50: Point-to-point (PP) | G50: Point-to-point (PP)
B51: FS: | C51: Units
B52: Assumed centre frequency of FS system | C52: GHz | D52: 113.025 | E52: 113.025 | F52: 132 | G52: 132
B53: Wavelength of FS system | C53: m | D53: =2.99792458/D52/10 -> 0.002652443778 | E53: =2.99792458/E52/10 -> 0.002652443778 | F53: =2.99792458/F52/10 -> 0.002271154985 | G53: =2.99792458/G52/10 -> 0.002271154985
B54: Receiver noise bandwidth (ITU-R-F.758-6) | C54: MHz | D54: 1000 | E54: 1000 | F54: 1000 | G54: 1000
B55: Receiver noise figure (ITU-R-F.758-6) | C55: dB | D55: 12 | E55: 12 | F55: 14 | G55: 14
B56: Misalignment of antenna main beam towards RDI (angle α+β in figure 13 in the Report) | C56: ° | D56: 4.57 | E56: 4.57 | F56: 4.57 | G56: 4.57
B57: Antenna gain in the direction of interferer (ITU-R-F.758-6) | C57: dBi | D57: 18 | E57: 18 | F57: 18 | G57: 18
B58: Feeder (insertion) loss (ITU-R-F.758-6) | C58: dB | D58: 0 | E58: 0 | F58: 0 | G58: 0
B59: I/N criterion (ITU-R F.758-6 ) | C59: dB | D59: -20 | E59: 5 | F59: -20 | G59: 5
B60: Receiver noise power density typical (ITU-R-F.758-6) | C60: dBW/MHz | D60: -132 | E60: -132 | F60: -130 | G60: -130
B61: Nominal long-term interference power density threshold (ITU-R-F.758-6) | C61: dBW/MHz | D61: =D60+D59 -> -152 | E61: =E60+E59 -> -127 | F61: =F60+F59 -> -150 | G61: =G60+G59 -> -125
B62: Interference threshold at receiver input within IF bandwidth | C62: dBm | D62: =D61+10*LOG10(D54)+30 -> -92 | E62: =E61+10*LOG10(E54)+30 -> -67 | F62: =F61+10*LOG10(F54)+30 -> -90 | G62: =G61+10*LOG10(G54)+30 -> -65
B63: (Receiver noise power density calculated over NF) | C63: dBW/MHz | D63: =-113.83+D55-30 -> -131.83 | E63: =-113.83+E55-30 -> -131.83 | F63: =-113.83+F55-30 -> -129.83 | G63: =-113.83+G55-30 -> -129.83
B65: Radiodetermination system (interferer):
B66: Conducted Tx power of interferer | C66: dBm | D66: -18 | E66: -5 | F66: -18 | G66: -5
B67: Out-of-band unwanted emissions attenuation (if FS victim is located in an adjacent band) | C67: dB | D67: 20 | E67: 20 | F67: 20 | G67: 20
B68: Tx e.i.r.p. of interferer | C68: dBm | D68: =D66-D67+D74 -> -2 | E68: =E66-E67+E74 -> 11 | F68: =F66-F67+F74 -> -2 | G68: =G66-G67+G74 -> 11
B69: Bandwidth of interferer Tx signal | C69: GHz | D69: 14 | E69: 14 | F69: 14 | G69: 14
B70: Mitigation technique (e.g. activity factor, adaptive power control) | C70: dB | D70: 0 | E70: 0 | F70: 0 | G70: 0
B71: Tx e.i.r.p. spectral density of interferer | C71: dBm/MHz | D71: =D68-10*LOG(D69*1000) -> -43.46128036 | E71: =E68-10*LOG(E69*1000) -> -30.46128036 | F71: =F68-10*LOG(F69*1000) -> -43.46128036 | G71: =G68-10*LOG(G69*1000) -> -30.46128036
B72: Tx e.i.r.p. spectral density of interferer with mitigation | C72: dBm/MHz | D72: =D68+D70-10*LOG(D69*1000) -> -43.46128036 | E72: =E68+E70-10*LOG(E69*1000) -> -30.46128036 | F72: =F68+F70-10*LOG(F69*1000) -> -43.46128036 | G72: =G68+G70-10*LOG(G69*1000) -> -30.46128036
B73: Tx e.i.r.p. of interferer with mitigation | C73: dBm | D73: =D68+D70 -> -2 | E73: =E68+E70 -> 11 | F73: =F68+F70 -> -2 | G73: =G68+G70 -> 11
B74: Gain of interferer antenna in direction of main radiation | C74: dBi | D74: 36 | E74: 36 | F74: 36 | G74: 36
B76: Indoor-outdoor attenuation (according to clause 2.3 in the Report) | C76: dB | D76: 0 | E76: 0 | F76: 0 | G76: 0
B77: Total e.i.r.p. towards FS system | C77: dBm | D77: =D73-D76 -> -2 | E77: =E73-E76 -> 11 | F77: =F73-F76 -> -2 | G77: =G73-G76 -> 11
B78: BWCF | C78: dB | D78: =IF(D69*1000<=D54, 0, 10*LOG10(D54/D69/1000)) -> -11.46128036 | E78: 0 | F78: =IF(F69*1000<=F54, 0, 10*LOG10(F54/F69/1000)) -> -11.46128036 | G78: 0
B81: Separation distance calculation:
B82: Minimum coupling loss (MCL) | C82: dB | D82: =D77-(D62-D57+D58)+D78 -> 96.53871964 | E82: =E77-(E62-E57+E58)+E78 -> 96 | F82: =F77-(F62-F57+F58)+F78 -> 94.53871964 | G82: =G77-(G62-G57+G58)+G78 -> 94
B83: Separation distance with FSL model | C83: km | D83: =10^((D82-32.44-20*LOG10(D52*1000))/20) -> 0.01418278327 | E83: =10^((E82-32.44-20*LOG10(E52*1000))/20) -> 0.01332985681 | F83: =10^((F82-32.44-20*LOG10(F52*1000))/20) -> 0.009646328577 | G83: =10^((G82-32.44-20*LOG10(G52*1000))/20) -> 0.009066216146
B84: Specific attenuation due to atmospheric gases (ITU-R P.676-11 figure 5) | C84: dB/km | D84: 0.4 | E84: 0.4 | F84: 0.8 | G84: 0.8
B85: Separation distance adjusted for attenuation due to atmospheric gases | C85: km | D85: 0.01417348864 | E85: 0.01332164322 | F85: 0.009637742033 | G85: 0.009058629066
B86: Balance check (should be close to zero) | C86: dB | D86: =D82-20*LOG10(D85)-D85*D84-32.44-20*LOG10(D52*1000) -> 2.473394535e-05 | E86: =E82-20*LOG10(E85)-E85*E84-32.44-20*LOG10(E52*1000) -> 2.50660113e-05 | F86: =F82-20*LOG10(F85)-F85*F84-32.44-20*LOG10(F52*1000) -> 2.487279258e-05 | G86: =G82-20*LOG10(G85)-G85*G84-32.44-20*LOG10(G52*1000) -> 2.494348431e-05
D87: Long term interference criterion | E87: Peak power objective | F87: Long term interference criterion | G87: Peak power objective

Sheet FS 134-141GHz
B1: Compatibility analysis between radiodetermination systems for industry automation in the frequency band 134 to 141 GHz and Fixed Service (FS) systems
B3: Scenario 1: Light pole connected to a building by means of an FS link – FS Rx on building (RDI main beam points exactly towards FS receiver). See Report figure 12.
B5: Victim Fixed Service (FS) system | D5: Band of FS system: 130-134 GHz | E5: Band of FS system: 130-134 GHz | F5: Band of FS system: 141-148,5 GHz | G5: Band of FS system: 141-148,5 GHz
B6: Sensor type | D6: Point-to-point (PP) | E6: Point-to-point (PP) | F6: Point-to-point (PP) | G6: Point-to-point (PP)
B7: FS: | C7: Units
B8: Assumed centre frequency of FS system | C8: GHz | D8: 132 | E8: 132 | F8: 144.75 | G8: 144.75
B9: Wavelength of FS system | C9: m | D9: =2.99792458/D8/10 -> 0.002271154985 | E9: =2.99792458/E8/10 -> 0.002271154985 | F9: =2.99792458/F8/10 -> 0.002071105064 | G9: =2.99792458/G8/10 -> 0.002071105064
B10: Receiver noise bandwidth (ITU-R-F.758-6) | C10: MHz | D10: 1000 | E10: 1000 | F10: 1000 | G10: 1000
B11: Receiver noise figure (ITU-R-F.758-6) | C11: dB | D11: 14 | E11: 14 | F11: 14 | G11: 14
B12: Misalignment of antenna main beam towards RDI (angle δ in figure 12 in the Report) | C12: ° | D12: 0.95 | E12: 0.95 | F12: 0.95 | G12: 0.95
B13: Antenna gain in the direction of interferer (ITU-R-F.758-6) | C13: dBi | D13: 37.5 | E13: 37.5 | F13: 37.5 | G13: 37.5
B14: Feeder (insertion) loss (ITU-R-F.758-6) | C14: dB | D14: 0 | E14: 0 | F14: 0 | G14: 0
B15: I/N criterion (ITU-R F.758-6 ) | C15: dB | D15: -20 | E15: 5 | F15: -20 | G15: 5
B16: Receiver noise power density typical (ITU-R-F.758-6) | C16: dBW/MHz | D16: -130 | E16: -130 | F16: -130 | G16: -130
B17: Nominal long-term interference power density threshold (ITU-R-F.758-6) | C17: dBW/MHz | D17: =D16+D15 -> -150 | E17: =E16+E15 -> -125 | F17: =F16+F15 -> -150 | G17: =G16+G15 -> -125
B18: Interference threshold at receiver input within IF bandwidth | C18: dBm | D18: =D17+10*LOG10(D10)+30 -> -90 | E18: =E17+10*LOG10(E10)+30 -> -65 | F18: =F17+10*LOG10(F10)+30 -> -90 | G18: =G17+10*LOG10(G10)+30 -> -65
B19: (Receiver noise power density calculated over NF) | C19: dBW/MHz | D19: =-113.83+D11-30 -> -129.83 | E19: =-113.83+E11-30 -> -129.83 | F19: =-113.83+F11-30 -> -129.83 | G19: =-113.83+G11-30 -> -129.83
B21: Radiodetermination system (interferer):
B22: Conducted Tx power of interferer | C22: dBm | D22: -18 | E22: -5 | F22: -18 | G22: -5
B23: Out-of-band unwanted emissions attenuation (if FS victim is located in an adjacent band) | C23: dB | D23: 20 | E23: 20 | F23: 20 | G23: 20
B24: Tx e.i.r.p. of interferer | C24: dBm | D24: =D22-D23+D30 -> -2 | E24: =E22-E23+E30 -> 11 | F24: =F22-F23+F30 -> -2 | G24: =G22-G23+G30 -> 11
B25: Bandwidth of interferer Tx signal | C25: GHz | D25: 7 | E25: 7 | F25: 7 | G25: 7
B26: Mitigation technique (e.g. activity factor, adaptive power control) | C26: dB | D26: 0 | E26: 0 | F26: 0 | G26: 0
B27: Tx e.i.r.p. spectral density of interferer | C27: dBm/MHz | D27: =D24-10*LOG(D25*1000) -> -40.4509804 | E27: =E24-10*LOG(E25*1000) -> -27.4509804 | F27: =F24-10*LOG(F25*1000) -> -40.4509804 | G27: =G24-10*LOG(G25*1000) -> -27.4509804
B28: Tx e.i.r.p. spectral density of interferer with mitigation | C28: dBm/MHz | D28: =D24+D26-10*LOG(D25*1000) -> -40.4509804 | E28: =E24+E26-10*LOG(E25*1000) -> -27.4509804 | F28: =F24+F26-10*LOG(F25*1000) -> -40.4509804 | G28: =G24+G26-10*LOG(G25*1000) -> -27.4509804
B29: Tx e.i.r.p. of interferer with mitigation | C29: dBm | D29: =D24+D26 -> -2 | E29: =E24+E26 -> 11 | F29: =F24+F26 -> -2 | G29: =G24+G26 -> 11
B30: Gain of interferer antenna in direction of main radiation | C30: dBi | D30: 36 | E30: 36 | F30: 36 | G30: 36
B32: Indoor-outdoor attenuation (according to clause 2.3 in the Report) | C32: dB | D32: 0 | E32: 0 | F32: 0 | G32: 0
B33: Total e.i.r.p. towards FS system | C33: dBm | D33: =D29-D32 -> -2 | E33: =E29-E32 -> 11 | F33: =F29-F32 -> -2 | G33: =G29-G32 -> 11
B34: BWCF | C34: dB | D34: =IF(D25*1000<=D10, 0, 10*LOG10(D10/D25/1000)) -> -8.4509804 | E34: 0 | F34: =IF(F25*1000<=F10, 0, 10*LOG10(F10/F25/1000)) -> -8.4509804 | G34: 0
B37: Separation distance calculation:
B38: Minimum coupling loss (MCL) | C38: dB | D38: =D33-(D18-D13+D14)+D34 -> 117.0490196 | E38: =E33-(E18-E13+E14)+E34 -> 113.5 | F38: =F33-(F18-F13+F14)+F34 -> 117.0490196 | G38: =G33-(G18-G13+G14)+G34 -> 113.5
B39: Separation distance with FSL model | C39: km | D39: =10^((D38-32.44-20*LOG10(D8*1000))/20) -> 0.1287884893 | E39: =10^((E38-32.44-20*LOG10(E8*1000))/20) -> 0.0855905996 | F39: =10^((F38-32.44-20*LOG10(F8*1000))/20) -> 0.1174444254 | G39: =10^((G38-32.44-20*LOG10(G8*1000))/20) -> 0.07805153124
B40: Specific attenuation due to atmospheric gases (ITU-R P.676-11 figure 5) | C40: dB/km | D40: 0.8 | E40: 0.8 | F40: 1 | G40: 1
B41: Separation distance adjusted for attenuation due to atmospheric gases | C41: km | D41: 0.1272871589 | E41: 0.08492353494 | F41: 0.1158876334 | G41: 0.07735928131
B42: Balance check (should be close to zero) | C42: dB | D42: =D38-20*LOG10(D41)-D41*D40-32.44-20*LOG10(D8*1000) -> 1.93886641e-05 | E42: =E38-20*LOG10(E41)-E41*E40-32.44-20*LOG10(E8*1000) -> 2.128048703e-05 | F42: =F38-20*LOG10(F41)-F41*F40-32.44-20*LOG10(F8*1000) -> 1.863693868e-05 | G42: =G38-20*LOG10(G41)-G41*G40-32.44-20*LOG10(G8*1000) -> 2.074319394e-05
D43: Long term interference criterion | E43: Peak power objective | F43: Long term interference criterion | G43: Peak power objective
B47: Scenario 2: Light pole connected to a building by means of an FS link – FS Rx at light pole (RDI main beam points exactly towards FS receiver). See Report figure 13.
B49: Victim Fixed Service (FS) system | D49: Band of FS system: 130-134 GHz | E49: Band of FS system: 130-134 GHz | F49: Band of FS system: 141-148,5 GHz | G49: Band of FS system: 141-148,5 GHz
B50: Sensor type | D50: Point-to-point (PP) | E50: Point-to-point (PP) | F50: Point-to-point (PP) | G50: Point-to-point (PP)
B51: FS: | C51: Units
B52: Assumed centre frequency of FS system | C52: GHz | D52: 132 | E52: 132 | F52: 144.75 | G52: 144.75
B53: Wavelength of FS system | C53: m | D53: =2.99792458/D52/10 -> 0.002271154985 | E53: =2.99792458/E52/10 -> 0.002271154985 | F53: =2.99792458/F52/10 -> 0.002071105064 | G53: =2.99792458/G52/10 -> 0.002071105064
B54: Receiver noise bandwidth (ITU-R-F.758-6) | C54: MHz | D54: 1000 | E54: 1000 | F54: 1000 | G54: 1000
B55: Receiver noise figure (ITU-R-F.758-6) | C55: dB | D55: 14 | E55: 14 | F55: 14 | G55: 14
B56: Misalignment of antenna main beam towards RDI (angle α+β in figure 13 in the Report) | C56: ° | D56: 4.57 | E56: 4.57 | F56: 4.57 | G56: 4.57
B57: Antenna gain in the direction of interferer (ITU-R-F.758-6) | C57: dBi | D57: 18 | E57: 18 | F57: 18 | G57: 18
B58: Feeder (insertion) loss (ITU-R-F.758-6) | C58: dB | D58: 0 | E58: 0 | F58: 0 | G58: 0
B59: I/N criterion (ITU-R F.758-6 ) | C59: dB | D59: -20 | E59: 5 | F59: -20 | G59: 5
B60: Receiver noise power density typical (ITU-R-F.758-6) | C60: dBW/MHz | D60: -130 | E60: -130 | F60: -130 | G60: -130
B61: Nominal long-term interference power density threshold (ITU-R-F.758-6) | C61: dBW/MHz | D61: =D60+D59 -> -150 | E61: =E60+E59 -> -125 | F61: =F60+F59 -> -150 | G61: =G60+G59 -> -125
B62: Interference threshold at receiver input within IF bandwidth | C62: dBm | D62: =D61+10*LOG10(D54)+30 -> -90 | E62: =E61+10*LOG10(E54)+30 -> -65 | F62: =F61+10*LOG10(F54)+30 -> -90 | G62: =G61+10*LOG10(G54)+30 -> -65
B63: (Receiver noise power density calculated over NF) | C63: dBW/MHz | D63: =-113.83+D55-30 -> -129.83 | E63: =-113.83+E55-30 -> -129.83 | F63: =-113.83+F55-30 -> -129.83 | G63: =-113.83+G55-30 -> -129.83
B65: Radiodetermination system (interferer):
B66: Conducted Tx power of interferer | C66: dBm | D66: -18 | E66: -5 | F66: -18 | G66: -5
B67: Out-of-band unwanted emissions attenuation (if FS victim is located in an adjacent band) | C67: dB | D67: 20 | E67: 20 | F67: 20 | G67: 20
B68: Tx e.i.r.p. of interferer | C68: dBm | D68: =D66-D67+D74 -> -2 | E68: =E66-E67+E74 -> 11 | F68: =F66-F67+F74 -> -2 | G68: =G66-G67+G74 -> 11
B69: Bandwidth of interferer Tx signal | C69: GHz | D69: 7 | E69: 7 | F69: 7 | G69: 7
B70: Mitigation technique (e.g. activity factor, adaptive power control) | C70: dB | D70: 0 | E70: 0 | F70: 0 | G70: 0
B71: Tx e.i.r.p. spectral density of interferer | C71: dBm/MHz | D71: =D68-10*LOG(D69*1000) -> -40.4509804 | E71: =E68-10*LOG(E69*1000) -> -27.4509804 | F71: =F68-10*LOG(F69*1000) -> -40.4509804 | G71: =G68-10*LOG(G69*1000) -> -27.4509804
B72: Tx e.i.r.p. spectral density of interferer with mitigation | C72: dBm/MHz | D72: =D68+D70-10*LOG(D69*1000) -> -40.4509804 | E72: =E68+E70-10*LOG(E69*1000) -> -27.4509804 | F72: =F68+F70-10*LOG(F69*1000) -> -40.4509804 | G72: =G68+G70-10*LOG(G69*1000) -> -27.4509804
B73: Tx e.i.r.p. of interferer with mitigation | C73: dBm | D73: =D68+D70 -> -2 | E73: =E68+E70 -> 11 | F73: =F68+F70 -> -2 | G73: =G68+G70 -> 11
B74: Gain of interferer antenna in direction of main radiation | C74: dBi | D74: 36 | E74: 36 | F74: 36 | G74: 36
B76: Indoor-outdoor attenuation (according to clause 2.3 in the Report) | C76: dB | D76: 0 | E76: 0 | F76: 0 | G76: 0
B77: Total e.i.r.p. towards FS system | C77: dBm | D77: =D73-D76 -> -2 | E77: =E73-E76 -> 11 | F77: =F73-F76 -> -2 | G77: =G73-G76 -> 11
B78: BWCF | C78: dB | D78: =IF(D69*1000<=D54, 0, 10*LOG10(D54/D69/1000)) -> -8.4509804 | E78: 0 | F78: =IF(F69*1000<=F54, 0, 10*LOG10(F54/F69/1000)) -> -8.4509804 | G78: 0
B81: Separation distance calculation:
B82: Minimum coupling loss (MCL) | C82: dB | D82: =D77-(D62-D57+D58)+D78 -> 97.5490196 | E82: =E77-(E62-E57+E58)+E78 -> 94 | F82: =F77-(F62-F57+F58)+F78 -> 97.5490196 | G82: =G77-(G62-G57+G58)+G78 -> 94
B83: Separation distance with FSL model | C83: km | D83: =10^((D82-32.44-20*LOG10(D52*1000))/20) -> 0.0136419687 | E83: =10^((E82-32.44-20*LOG10(E52*1000))/20) -> 0.009066216146 | F83: =10^((F82-32.44-20*LOG10(F52*1000))/20) -> 0.01244034451 | G83: =10^((G82-32.44-20*LOG10(G52*1000))/20) -> 0.008267637522
B84: Specific attenuation due to atmospheric gases (ITU-R P.676-11 figure 5) | C84: dB/km | D84: 0.9 | E84: 0.8 | F84: 1 | G84: 1
B85: Separation distance adjusted for attenuation due to atmospheric gases | C85: km | D85: 0.01362268761 | E85: 0.009058629091 | F85: 0.01242252992 | G85: 0.008259755599
B86: Balance check (should be close to zero) | C86: dB | D86: =D82-20*LOG10(D85)-D85*D84-32.44-20*LOG10(D52*1000) -> 2.460421027e-05 | E86: =E82-20*LOG10(E85)-E85*E84-32.44-20*LOG10(E52*1000) -> 2.491938332e-05 | F86: =F82-20*LOG10(F85)-F85*F84-32.44-20*LOG10(F52*1000) -> 2.459479953e-05 | G86: =G82-20*LOG10(G85)-G85*G84-32.44-20*LOG10(G52*1000) -> 2.485571585e-05
D87: Long term interference criterion | E87: Peak power objective | F87: Long term interference criterion | G87: Peak power objective

Sheet FS 174,8-182GHz
B1: Compatibility analysis between radiodetermination systems for industry automation in the frequency band 174,8 to 182 GHz and Fixed Service (FS) systems
B3: Scenario 1: Light pole connected to a building by means of an FS link – FS Rx on building (RDI main beam points exactly towards FS receiver). See Report figure 12.
B5: Victim Fixed Service (FS) system | D5: Band of FS system: 167-174,8 GHz | E5: Band of FS system: 167-174,8 GHz
B6: Sensor type | D6: Point-to-point (PP) | E6: Point-to-point (PP)
B7: FS: | C7: Units
B8: Assumed centre frequency of FS system | C8: GHz | D8: 170.9 | E8: 170.9
B9: Wavelength of FS system | C9: m | D9: =2.99792458/D8/10 -> 0.001754198116 | E9: =2.99792458/E8/10 -> 0.001754198116
B10: Receiver noise bandwidth (ITU-R-F.758-6) | C10: MHz | D10: 1000 | E10: 1000
B11: Receiver noise figure (ITU-R-F.758-6) | C11: dB | D11: 14 | E11: 14
B12: Misalignment of antenna main beam towards RDI (angle δ in figure 12 in the Report) | C12: ° | D12: 0.95 | E12: 0.95
B13: Antenna gain in the direction of interferer (ITU-R-F.758-6) | C13: dBi | D13: 37.5 | E13: 37.5
B14: Feeder (insertion) loss (ITU-R-F.758-6) | C14: dB | D14: 0 | E14: 0
B15: I/N criterion (ITU-R F.758-6 ) | C15: dB | D15: -20 | E15: 5
B16: Receiver noise power density typical (ITU-R-F.758-6) | C16: dBW/MHz | D16: -130 | E16: -130
B17: Nominal long-term interference power density threshold (ITU-R-F.758-6) | C17: dBW/MHz | D17: =D16+D15 -> -150 | E17: =E16+E15 -> -125
B18: Interference threshold at receiver input within IF bandwidth | C18: dBm | D18: =D17+10*LOG10(D10)+30 -> -90 | E18: =E17+10*LOG10(E10)+30 -> -65
B19: (Receiver noise power density calculated over NF) | C19: dBW/MHz | D19: =-113.83+D11-30 -> -129.83 | E19: =-113.83+E11-30 -> -129.83
B21: Radiodetermination system (interferer):
B22: Conducted Tx power of interferer | C22: dBm | D22: -18 | E22: -5
B23: Out-of-band unwanted emissions attenuation (if FS victim is located in an adjacent band) | C23: dB | D23: 20 | E23: 20
B24: Tx e.i.r.p. of interferer | C24: dBm | D24: =D22-D23+D30 -> -2 | E24: =E22-E23+E30 -> 11
B25: Bandwidth of interferer Tx signal | C25: GHz | D25: 1.5 | E25: 1.5
B26: Mitigation technique (e.g. activity factor, adaptive power control) | C26: dB | D26: 0 | E26: 0
B27: Tx e.i.r.p. spectral density of interferer | C27: dBm/MHz | D27: =D24-10*LOG(D25*1000) -> -33.76091259 | E27: =E24-10*LOG(E25*1000) -> -20.76091259
B28: Tx e.i.r.p. spectral density of interferer with mitigation | C28: dBm/MHz | D28: =D24+D26-10*LOG(D25*1000) -> -33.76091259 | E28: =E24+E26-10*LOG(E25*1000) -> -20.76091259
B29: Tx e.i.r.p. of interferer with mitigation | C29: dBm | D29: =D24+D26 -> -2 | E29: =E24+E26 -> 11
B30: Gain of interferer antenna in direction of main radiation | C30: dBi | D30: 36 | E30: 36
B32: Indoor-outdoor attenuation (according to clause 2.3 in the Report) | C32: dB | D32: 0 | E32: 0
B33: Total e.i.r.p. towards FS system | C33: dBm | D33: =D29-D32 -> -2 | E33: =E29-E32 -> 11
B34: BWCF | C34: dB | D34: =IF(D25*1000<=D10, 0, 10*LOG10(D10/D25/1000)) -> -1.760912591 | E34: 0
B37: Separation distance calculation:
B38: Minimum coupling loss (MCL) | C38: dB | D38: =D33-(D18-D13+D14)+D34 -> 123.7390874 | E38: =E33-(E18-E13+E14)+E34 -> 113.5
B39: Separation distance with FSL model | C39: km | D39: =10^((D38-32.44-20*LOG10(D8*1000))/20) -> 0.2148880712 | E39: =10^((E38-32.44-20*LOG10(E8*1000))/20) -> 0.06610859653
B40: Specific attenuation due to atmospheric gases (ITU-R P.676-11 figure 5) | C40: dB/km | D40: 2 | E40: 2
B41: Separation distance adjusted for attenuation due to atmospheric gases | C41: km | D41: 0.2049640073 | E41: 0.06512452732
B42: Balance check (should be close to zero) | C42: dB | D42: =D38-20*LOG10(D41)-D41*D40-32.44-20*LOG10(D8*1000) -> 0.0007660690106 | E42: =E38-20*LOG10(E41)-E41*E40-32.44-20*LOG10(E8*1000) -> 1.800792876e-05
D43: Long term interference criterion | E43: Peak power objective
B47: Scenario 2: Light pole connected to a building by means of an FS link – FS Rx at light pole (RDI main beam points exactly towards FS receiver). See Report figure 13.
B49: Victim Fixed Service (FS) system | D49: Band of FS system: 167-174,8 GHz | E49: Band of FS system: 167-174,8 GHz
B50: Sensor type | D50: Point-to-point (PP) | E50: Point-to-point (PP)
B51: FS: | C51: Units
B52: Assumed centre frequency of FS system | C52: GHz | D52: 170.9 | E52: 170.9
B53: Wavelength of FS system | C53: m | D53: =2.99792458/D52/10 -> 0.001754198116 | E53: =2.99792458/E52/10 -> 0.001754198116
B54: Receiver noise bandwidth (ITU-R-F.758-6) | C54: MHz | D54: 1000 | E54: 1000
B55: Receiver noise figure (ITU-R-F.758-6) | C55: dB | D55: 14 | E55: 14
B56: Misalignment of antenna main beam towards RDI (angle α+β in figure 13 in the Report) | C56: ° | D56: 4.57 | E56: 4.57
B57: Antenna gain in the direction of interferer (ITU-R-F.758-6) | C57: dBi | D57: 18 | E57: 18
B58: Feeder (insertion) loss (ITU-R-F.758-6) | C58: dB | D58: 0 | E58: 0
B59: I/N criterion (ITU-R F.758-6 ) | C59: dB | D59: -20 | E59: 5
B60: Receiver noise power density typical (ITU-R-F.758-6) | C60: dBW/MHz | D60: -130 | E60: -130
B61: Nominal long-term interference power density threshold (ITU-R-F.758-6) | C61: dBW/MHz | D61: =D60+D59 -> -150 | E61: =E60+E59 -> -125
B62: Interference threshold at receiver input within IF bandwidth | C62: dBm | D62: =D61+10*LOG10(D54)+30 -> -90 | E62: =E61+10*LOG10(E54)+30 -> -65
B63: (Receiver noise power density calculated over NF) | C63: dBW/MHz | D63: =-113.83+D55-30 -> -129.83 | E63: =-113.83+E55-30 -> -129.83
B65: Radiodetermination system (interferer):
B66: Conducted Tx power of interferer | C66: dBm | D66: -18 | E66: -5
B67: Out-of-band unwanted emissions attenuation (if FS victim is located in an adjacent band) | C67: dB | D67: 20 | E67: 20
B68: Tx e.i.r.p. of interferer | C68: dBm | D68: =D66-D67+D74 -> -2 | E68: =E66-E67+E74 -> 11
B69: Bandwidth of interferer Tx signal | C69: GHz | D69: 1.5 | E69: 1.5
B70: Mitigation technique (e.g. activity factor, adaptive power control) | C70: dB | D70: 0 | E70: 0
B71: Tx e.i.r.p. spectral density of interferer | C71: dBm/MHz | D71: =D68-10*LOG(D69*1000) -> -33.76091259 | E71: =E68-10*LOG(E69*1000) -> -20.76091259
B72: Tx e.i.r.p. spectral density of interferer with mitigation | C72: dBm/MHz | D72: =D68+D70-10*LOG(D69*1000) -> -33.76091259 | E72: =E68+E70-10*LOG(E69*1000) -> -20.76091259
B73: Tx e.i.r.p. of interferer with mitigation | C73: dBm | D73: =D68+D70 -> -2 | E73: =E68+E70 -> 11
B74: Gain of interferer antenna in direction of main radiation | C74: dBi | D74: 36 | E74: 36
B76: Indoor-outdoor attenuation (according to clause 2.3 in the Report) | C76: dB | D76: 0 | E76: 0
B77: Total e.i.r.p. towards FS system | C77: dBm | D77: =D73-D76 -> -2 | E77: =E73-E76 -> 11
B78: BWCF | C78: dB | D78: =IF(D69*1000<=D54, 0, 10*LOG10(D54/D69/1000)) -> -1.760912591 | E78: 0
B81: Separation distance calculation:
B82: Minimum coupling loss (MCL) | C82: dB | D82: =D77-(D62-D57+D58)+D78 -> 104.2390874 | E82: =E77-(E62-E57+E58)+E78 -> 94
B83: Separation distance with FSL model | C83: km | D83: =10^((D82-32.44-20*LOG10(D52*1000))/20) -> 0.02276209899 | E83: =10^((E82-32.44-20*LOG10(E52*1000))/20) -> 0.007002577714
B84: Specific attenuation due to atmospheric gases (ITU-R P.676-11 figure 5) | C84: dB/km | D84: 2 | E84: 2
B85: Separation distance adjusted for attenuation due to atmospheric gases | C85: km | D85: 0.02264371983 | E85: 0.006991294267
B86: Balance check (should be close to zero) | C86: dB | D86: =D82-20*LOG10(D85)-D85*D84-32.44-20*LOG10(D52*1000) -> 3.261524881e-06 | E86: =E82-20*LOG10(E85)-E85*E84-32.44-20*LOG10(E52*1000) -> 2.451360743e-05
D87: Long term interference criterion | E87: Peak power objective

Sheet Amateur 116-130GHz
B1: Compatibility analysis between radiodetermination systems for industry automation in the frequency band 116 to 130 GHz and Amateur Systems
B5: Victim Amateur system | D5: Band of amateur system: 122,25-123 GHz
B6: Sensor type | D6: Morse on-off keying | E6: Analogue voice | F6: Data, digital voice and multimedia | G6: Earth-moon-earth (EME) systems
B7: Amateur system: | C7: Units
B8: Assumed centre frequency of Amateur system | C8: GHz | D8: 122.625 | E8: 122.625 | F8: 122.625 | G8: 122.625
B9: Wavelength of Amateur system | C9: m | D9: =2.99792458/D8/10 -> 0.002444790687 | E9: =2.99792458/E8/10 -> 0.002444790687 | F9: =2.99792458/F8/10 -> 0.002444790687 | G9: =2.99792458/G8/10 -> 0.002444790687
B10: Receiver IF bandwidth (ITU-R M.1732-2) | C10: MHz | D10: 0.0005 | E10: 0.0027 | F10: 0.0027 | G10: 0.0024
B11: Receiver noise figure (ITU-R M.1732-2) | C11: dB | D11: 3 | E11: 3 | F11: 3 | G11: 3
B12: Antenna gain in the direction of interferer (ITU-R M.1732-2) | C12: dBi | D12: 32 | E12: 32 | F12: 32 | G12: 32
B13: Feeder (insertion) loss (ITU-R M.1732-2) | C13: dB | D13: 2 | E13: 2 | F13: 2 | G13: 3
B14: I/N criterion (ITU-R M.1808) | C14: dB | D14: -10 | E14: -10 | F14: -10 | G14: -10
B15: Receiver noise power density | C15: dBW/MHz | D15: =-113.83+D11-30 -> -140.83 | E15: =-113.83+E11-30 -> -140.83 | F15: =-113.83+F11-30 -> -140.83 | G15: =-113.83+G11-30 -> -140.83
B16: Interference power density threshold | C16: dBW/MHz | D16: =D15+D14 -> -150.83 | E16: =E15+E14 -> -150.83 | F16: =F15+F14 -> -150.83 | G16: =G15+G14 -> -150.83
B17: Interference threshold at receiver input within IF bandwidth | C17: dBm | D17: =D16+10*LOG10(D10)+30 -> -153.8403 | E17: =E16+10*LOG10(E10)+30 -> -146.5163624 | F17: =F16+10*LOG10(F10)+30 -> -146.5163624 | G17: =G16+10*LOG10(G10)+30 -> -147.0278876
B19: Radiodetermination system (interferer):
B20: Conducted Tx power of interferer | C20: dBm | D20: -18 | E20: -18 | F20: -18 | G20: -18
B21: Out-of-band unwanted emissions attenuation (if Amateur victim is located in an adjacent band) | C21: dB | D21: 0 | E21: 0 | F21: 0 | G21: 0
B22: Tx e.i.r.p. of interferer | C22: dBm | D22: =D20-D21+D28 -> 18 | E22: =E20-E21+E28 -> 18 | F22: =F20-F21+F28 -> 18 | G22: =G20-G21+G28 -> 18
B23: Bandwidth of interferer Tx signal | C23: GHz | D23: 14 | E23: 14 | F23: 14 | G23: 14
B24: Mitigation technique (e.g. activity factor, adaptive power control) | C24: dB | D24: 0 | E24: 0 | F24: 0 | G24: 0
B25: Tx e.i.r.p. spectral density of interferer | C25: dBm/MHz | D25: =D22-10*LOG(D23*1000) -> -23.46128036 | E25: =E22-10*LOG(E23*1000) -> -23.46128036 | F25: =F22-10*LOG(F23*1000) -> -23.46128036 | G25: =G22-10*LOG(G23*1000) -> -23.46128036
B26: Tx e.i.r.p. spectral density of interferer with mitigation | C26: dBm/MHz | D26: =D22+D24-10*LOG(D23*1000) -> -23.46128036 | E26: =E22+E24-10*LOG(E23*1000) -> -23.46128036 | F26: =F22+F24-10*LOG(F23*1000) -> -23.46128036 | G26: =G22+G24-10*LOG(G23*1000) -> -23.46128036
B27: Tx e.i.r.p. of interferer with mitigation | C27: dBm | D27: =D22+D24 -> 18 | E27: =E22+E24 -> 18 | F27: =F22+F24 -> 18 | G27: =G22+G24 -> 18
B28: Gain of the interferer antenna in direction of main radiation | C28: dBi | D28: 36 | E28: 36 | F28: 36 | G28: 36
B30: Indoor-outdoor attenuation (according to clause 2.3 in the Report) | C30: dB | D30: 0 | E30: 0 | F30: 0 | G30: 0
B31: Total e.i.r.p. towards Amateur system | C31: dBm | D31: =D27-D30 -> 18 | E31: =E27-E30 -> 18 | F31: =F27-F30 -> 18 | G31: =G27-G30 -> 18
B32: BWCF | C32: dB | D32: =IF(D23*1000<=D10, 0, 10*LOG10(D10/D23/1000)) -> -74.47158031 | E32: =IF(E23*1000<=E10, 0, 10*LOG10(E10/E23/1000)) -> -67.14764272 | F32: =IF(F23*1000<=F10, 0, 10*LOG10(F10/F23/1000)) -> -67.14764272 | G32: =IF(G23*1000<=G10, 0, 10*LOG10(G10/G23/1000)) -> -67.65916794
B35: Separation distance calculation:
B36: Minimum coupling loss (MCL) | C36: dB | D36: =D31-(D17-D12+D13)+D32 -> 127.3687196 | E36: =E31-(E17-E12+E13)+E32 -> 127.3687196 | F36: =F31-(F17-F12+F13)+F32 -> 127.3687196 | G36: =G31-(G17-G12+G13)+G32 -> 126.3687196
B37: Separation distance with FSL model | C37: km | D37: =10^((D36-32.44-20*LOG10(D8*1000))/20) -> 0.454838231 | E37: =10^((E36-32.44-20*LOG10(E8*1000))/20) -> 0.454838231 | F37: =10^((F36-32.44-20*LOG10(F8*1000))/20) -> 0.454838231 | G37: =10^((G36-32.44-20*LOG10(G8*1000))/20) -> 0.4053750001
B38: Specific attenuation due to atmospheric gases (ITU-R P.676-11 figure 5) | C38: dB/km | D38: 0.4 | E38: 0.4 | F38: 0.4 | G38: 0.4
B39: Separation distance adjusted for attenuation due to atmospheric gases | C39: km | D39: 0.4455989986 | E39: 0.4455989985 | F39: 0.4455989985 | G39: 0.3980117666
B40: Balance check (should be close to zero) | C40: dB | D40: =D36-20*LOG10(D39)-D39*D38-32.44-20*LOG10(D8*1000) -> 1.551304302e-05 | E40: =E36-20*LOG10(E39)-E39*E38-32.44-20*LOG10(E8*1000) -> 1.551554681e-05 | F40: =F36-20*LOG10(F39)-F39*F38-32.44-20*LOG10(F8*1000) -> 1.551554681e-05 | G40: =G36-20*LOG10(G39)-G39*G38-32.44-20*LOG10(G8*1000) -> 1.629864101e-05

Sheet Amateur 134-141GHz
B1: Compatibility analysis between radiodetermination systems for industry automation in the frequency band 116 to 130 GHz and Amateur Systems
B5: Victim Amateur system | D5: Band of amateur system: 134-141 GHz
B6: Sensor type | D6: Morse on-off keying | E6: Analogue voice | F6: Data, digital voice and multimedia | G6: Earth-moon-earth (EME) systems
B7: Amateur system: | C7: Units
B8: Assumed centre frequency of Amateur system | C8: GHz | D8: 137.5 | E8: 137.5 | F8: 137.5 | G8: 137.5
B9: Wavelength of Amateur system | C9: m | D9: =2.99792458/D8/10 -> 0.002180308785 | E9: =2.99792458/E8/10 -> 0.002180308785 | F9: =2.99792458/F8/10 -> 0.002180308785 | G9: =2.99792458/G8/10 -> 0.002180308785
B10: Receiver IF bandwidth (ITU-R M.1732-2) | C10: MHz | D10: 0.0005 | E10: 0.0027 | F10: 0.0027 | G10: 0.0024
B11: Receiver noise figure (ITU-R M.1732-2) | C11: dB | D11: 3 | E11: 3 | F11: 3 | G11: 3
B12: Antenna gain in the direction of interferer (ITU-R M.1732-2) | C12: dBi | D12: 32 | E12: 32 | F12: 32 | G12: 32
B13: Feeder (insertion) loss (ITU-R M.1732-2) | C13: dB | D13: 2 | E13: 2 | F13: 2 | G13: 3
B14: I/N criterion (ITU-R M.1808) | C14: dB | D14: -10 | E14: -10 | F14: -10 | G14: -10
B15: Receiver noise power density | C15: dBW/MHz | D15: =-113.83+D11-30 -> -140.83 | E15: =-113.83+E11-30 -> -140.83 | F15: =-113.83+F11-30 -> -140.83 | G15: =-113.83+G11-30 -> -140.83
B16: Interference power density threshold | C16: dBW/MHz | D16: =D15+D14 -> -150.83 | E16: =E15+E14 -> -150.83 | F16: =F15+F14 -> -150.83 | G16: =G15+G14 -> -150.83
B17: Interference threshold at receiver input within IF bandwidth | C17: dBm | D17: =D16+10*LOG10(D10)+30 -> -153.8403 | E17: =E16+10*LOG10(E10)+30 -> -146.5163624 | F17: =F16+10*LOG10(F10)+30 -> -146.5163624 | G17: =G16+10*LOG10(G10)+30 -> -147.0278876
B19: Radiodetermination system (interferer):
B20: Conducted Tx power of interferer | C20: dBm | D20: -18 | E20: -18 | F20: -18 | G20: -18
B21: Out-of-band unwanted emissions attenuation (if Amateur victim is located in an adjacent band) | C21: dB | D21: 0 | E21: 0 | F21: 0 | G21: 0
B22: Tx e.i.r.p. of interferer | C22: dBm | D22: =D20-D21+D28 -> 18 | E22: =E20-E21+E28 -> 18 | F22: =F20-F21+F28 -> 18 | G22: =G20-G21+G28 -> 18
B23: Bandwidth of interferer Tx signal | C23: GHz | D23: 7 | E23: 7 | F23: 7 | G23: 7
B24: Mitigation technique (e.g. activity factor, adaptive power control) | C24: dB | D24: 0 | E24: 0 | F24: 0 | G24: 0
B25: Tx e.i.r.p. spectral density of interferer | C25: dBm/MHz | D25: =D22-10*LOG(D23*1000) -> -20.4509804 | E25: =E22-10*LOG(E23*1000) -> -20.4509804 | F25: =F22-10*LOG(F23*1000) -> -20.4509804 | G25: =G22-10*LOG(G23*1000) -> -20.4509804
B26: Tx e.i.r.p. spectral density of interferer with mitigation | C26: dBm/MHz | D26: =D22+D24-10*LOG(D23*1000) -> -20.4509804 | E26: =E22+E24-10*LOG(E23*1000) -> -20.4509804 | F26: =F22+F24-10*LOG(F23*1000) -> -20.4509804 | G26: =G22+G24-10*LOG(G23*1000) -> -20.4509804
B27: Tx e.i.r.p. of interferer with mitigation | C27: dBm | D27: =D22+D24 -> 18 | E27: =E22+E24 -> 18 | F27: =F22+F24 -> 18 | G27: =G22+G24 -> 18
B28: Gain of the interferer antenna in direction of main radiation | C28: dBi | D28: 36 | E28: 36 | F28: 36 | G28: 36
B30: Indoor-outdoor attenuation (according to clause 2.3 in the Report) | C30: dB | D30: 0 | E30: 0 | F30: 0 | G30: 0
B31: Total e.i.r.p. towards Amateur system | C31: dBm | D31: =D27-D30 -> 18 | E31: =E27-E30 -> 18 | F31: =F27-F30 -> 18 | G31: =G27-G30 -> 18
B32: BWCF | C32: dB | D32: =IF(D23*1000<=D10, 0, 10*LOG10(D10/D23/1000)) -> -71.46128036 | E32: =IF(E23*1000<=E10, 0, 10*LOG10(E10/E23/1000)) -> -64.13734276 | F32: =IF(F23*1000<=F10, 0, 10*LOG10(F10/F23/1000)) -> -64.13734276 | G32: =IF(G23*1000<=G10, 0, 10*LOG10(G10/G23/1000)) -> -64.64886798
B35: Separation distance calculation:
B36: Minimum coupling loss (MCL) | C36: dB | D36: =D31-(D17-D12+D13)+D32 -> 130.3790196 | E36: =E31-(E17-E12+E13)+E32 -> 130.3790196 | F36: =F31-(F17-F12+F13)+F32 -> 130.3790196 | G36: =G31-(G17-G12+G13)+G32 -> 129.3790196
B37: Separation distance with FSL model | C37: km | D37: =10^((D36-32.44-20*LOG10(D8*1000))/20) -> 0.5736516959 | E37: =10^((E36-32.44-20*LOG10(E8*1000))/20) -> 0.5736516959 | F37: =10^((F36-32.44-20*LOG10(F8*1000))/20) -> 0.5736516959 | G37: =10^((G36-32.44-20*LOG10(G8*1000))/20) -> 0.5112676121
B38: Specific attenuation due to atmospheric gases (ITU-R P.676-11 figure 5) | C38: dB/km | D38: 0.8 | E38: 0.8 | F38: 0.8 | G38: 0.8
B39: Separation distance adjusted for attenuation due to atmospheric gases | C39: km | D39: 0.5455397321 | E39: 0.5455397321 | F39: 0.5455397321 | G39: 0.4887619979
B40: Balance check (should be close to zero) | C40: dB | D40: =D36-20*LOG10(D39)-D39*D38-32.44-20*LOG10(D8*1000) -> 6.128401637e-06 | E40: =E36-20*LOG10(E39)-E39*E38-32.44-20*LOG10(E8*1000) -> 6.128401665e-06 | F40: =F36-20*LOG10(F39)-F39*F38-32.44-20*LOG10(F8*1000) -> 6.128401665e-06 | G40: =G36-20*LOG10(G39)-G39*G38-32.44-20*LOG10(G8*1000) -> 7.410651492e-06

Sheet Amateur 231,5-250GHz
B1: Compatibility analysis between radiodetermination systems for industry automation in the frequency band 231,5 to 250 GHz and Amateur Systems
B5: Victim Amateur system | D5: Band of amateur system: 241-250 GHz
B6: Sensor type | D6: Morse on-off keying | E6: Analogue voice | F6: Data, digital voice and multimedia | G6: Earth-moon-earth (EME) systems
B7: Amateur system: | C7: Units
B8: Assumed centre frequency of Amateur system | C8: GHz | D8: 245.5 | E8: 245.5 | F8: 245.5 | G8: 245.5
B9: Wavelength of Amateur system | C9: m | D9: =2.99792458/D8/10 -> 0.001221150542 | E9: =2.99792458/E8/10 -> 0.001221150542 | F9: =2.99792458/F8/10 -> 0.001221150542 | G9: =2.99792458/G8/10 -> 0.001221150542
B10: Receiver IF bandwidth (ITU-R M.1732-2) | C10: MHz | D10: 0.0005 | E10: 0.0027 | F10: 0.0027 | G10: 0.0024
B11: Receiver noise figure (ITU-R M.1732-2) | C11: dB | D11: 5 | E11: 5 | F11: 5 | G11: 5
B12: Antenna gain in the direction of interferer (ITU-R M.1732-2) | C12: dBi | D12: 32 | E12: 32 | F12: 32 | G12: 32
B13: Feeder (insertion) loss (ITU-R M.1732-2) | C13: dB | D13: 3 | E13: 3 | F13: 3 | G13: 4
B14: I/N criterion (ITU-R M.1808) | C14: dB | D14: -10 | E14: -10 | F14: -10 | G14: -10
B15: Receiver noise power density | C15: dBW/MHz | D15: =-113.83+D11-30 -> -138.83 | E15: =-113.83+E11-30 -> -138.83 | F15: =-113.83+F11-30 -> -138.83 | G15: =-113.83+G11-30 -> -138.83
B16: Interference power density threshold | C16: dBW/MHz | D16: =D15+D14 -> -148.83 | E16: =E15+E14 -> -148.83 | F16: =F15+F14 -> -148.83 | G16: =G15+G14 -> -148.83
B17: Interference threshold at receiver input within IF bandwidth | C17: dBm | D17: =D16+10*LOG10(D10)+30 -> -151.8403 | E17: =E16+10*LOG10(E10)+30 -> -144.5163624 | F17: =F16+10*LOG10(F10)+30 -> -144.5163624 | G17: =G16+10*LOG10(G10)+30 -> -145.0278876
B19: Radiodetermination system (interferer):
B20: Conducted Tx power of interferer | C20: dBm | D20: -19.8 | E20: -19.8 | F20: -19.8 | G20: -19.8
B21: Out-of-band unwanted emissions attenuation (if Amateur victim is located in an adjacent band) | C21: dB | D21: 0 | E21: 0 | F21: 0 | G21: 0
B22: Tx e.i.r.p. of interferer | C22: dBm | D22: =D20-D21+D28 -> 16.2 | E22: =E20-E21+E28 -> 16.2 | F22: =F20-F21+F28 -> 16.2 | G22: =G20-G21+G28 -> 16.2
B23: Bandwidth of interferer Tx signal | C23: GHz | D23: 15 | E23: 15 | F23: 15 | G23: 15
B24: Mitigation technique (e.g. activity factor, adaptive power control) | C24: dB | D24: 0 | E24: 0 | F24: 0 | G24: 0
B25: Tx e.i.r.p. spectral density of interferer | C25: dBm/MHz | D25: =D22-10*LOG(D23*1000) -> -25.56091259 | E25: =E22-10*LOG(E23*1000) -> -25.56091259 | F25: =F22-10*LOG(F23*1000) -> -25.56091259 | G25: =G22-10*LOG(G23*1000) -> -25.56091259
B26: Tx e.i.r.p. spectral density of interferer with mitigation | C26: dBm/MHz | D26: =D22+D24-10*LOG(D23*1000) -> -25.56091259 | E26: =E22+E24-10*LOG(E23*1000) -> -25.56091259 | F26: =F22+F24-10*LOG(F23*1000) -> -25.56091259 | G26: =G22+G24-10*LOG(G23*1000) -> -25.56091259
B27: Tx e.i.r.p. of interferer with mitigation | C27: dBm | D27: =D22+D24 -> 16.2 | E27: =E22+E24 -> 16.2 | F27: =F22+F24 -> 16.2 | G27: =G22+G24 -> 16.2
B28: Gain of the interferer antenna in direction of main radiation | C28: dBi | D28: 36 | E28: 36 | F28: 36 | G28: 36
B30: Indoor-outdoor attenuation (according to clause 2.3 in the Report) | C30: dB | D30: 0 | E30: 0 | F30: 0 | G30: 0
B31: Total e.i.r.p. towards Amateur system | C31: dBm | D31: =D27-D30 -> 16.2 | E31: =E27-E30 -> 16.2 | F31: =F27-F30 -> 16.2 | G31: =G27-G30 -> 16.2
B32: BWCF | C32: dB | D32: =IF(D23*1000<=D10, 0, 10*LOG10(D10/D23/1000)) -> -74.77121255 | E32: =IF(E23*1000<=E10, 0, 10*LOG10(E10/E23/1000)) -> -67.44727495 | F32: =IF(F23*1000<=F10, 0, 10*LOG10(F10/F23/1000)) -> -67.44727495 | G32: =IF(G23*1000<=G10, 0, 10*LOG10(G10/G23/1000)) -> -67.95880017
B35: Separation distance calculation:
B36: Minimum coupling loss (MCL) | C36: dB | D36: =D31-(D17-D12+D13)+D32 -> 122.2690874 | E36: =E31-(E17-E12+E13)+E32 -> 122.2690874 | F36: =F31-(F17-F12+F13)+F32 -> 122.2690874 | G36: =G31-(G17-G12+G13)+G32 -> 121.2690874
B37: Separation distance with FSL model | C37: km | D37: =10^((D36-32.44-20*LOG10(D8*1000))/20) -> 0.1262998614 | E37: =10^((E36-32.44-20*LOG10(E8*1000))/20) -> 0.1262998614 | F37: =10^((F36-32.44-20*LOG10(F8*1000))/20) -> 0.1262998614 | G37: =10^((G36-32.44-20*LOG10(G8*1000))/20) -> 0.11256487
B38: Specific attenuation due to atmospheric gases (ITU-R P.676-11 figure 5) | C38: dB/km | D38: 3 | E38: 3 | F38: 3 | G38: 3
B39: Separation distance adjusted for attenuation due to atmospheric gases | C39: km | D39: 0.1211246839 | E39: 0.1211251801 | F39: 0.1211251801 | G39: 0.1084274162
B40: Balance check (should be close to zero) | C40: dB | D40: =D36-20*LOG10(D39)-D39*D38-32.44-20*LOG10(D8*1000) -> 3.029646473e-05 | E40: =E36-20*LOG10(E39)-E39*E38-32.44-20*LOG10(E8*1000) -> -6.773826982e-06 | F40: =F36-20*LOG10(F39)-F39*F38-32.44-20*LOG10(F8*1000) -> -6.773826982e-06 | G40: =G36-20*LOG10(G39)-G39*G38-32.44-20*LOG10(G8*1000) -> -6.940305042e-06
